Workbook

Sheet Celkové dle OP
A2: Fond | B2: Program | C2: Příspěvek unie (tis.Kč) | D2: Národní spolufinancování (tis. Kč) | E2: Podpora (tis.Kč)
A3: EFRR | B3: IROP | C3: 56,272,905.95 | D3: 0.00 | E3: =C3+D3 -> 56,272,905.95
B4: OP ŽP | C4: =E4 -> 12,836.19 | D4: 0.00 | E4: 12,836.19
B5: Celkem EFRR | C5: =SUM(C3:C4) -> 56,285,742.14 | D5: =SUM(D3:D4) -> 0.00 | E5: =SUM(E3:E4) -> 56,285,742.14
A6: ESF | B6: OP Z | C6: 12,335.10 | D6: 1,590.01 | E6: =C6+D6 -> 13,925.11
B7: Celkem ESF | C7: =C6 -> 12,335.10 | D7: =D6 -> 1,590.01 | E7: 13,925.11
A8: EZFRV | B8: PRV | C8: =E8/100*75 -> 22,320.70 | D8: =E8/100*25 -> 7,440.23 | E8: 29,760.93
B9: Celkem EZFRV | C9: 22,320.71 | D9: 7,440.22 | E9: =E8 -> 29,760.93
A10: Celkem | C10: =C5+C7+C9 -> 56,320,397.95 | D10: =D5+D7+D9 -> 9,030.23 | E10: =E5+E7+E9 -> 56,329,428.18

Sheet E - financování dle SC
A1: Období 2016 - 2023
A3: Specifický cíl SCLLD | B3: Opatření SCLLD | C3: Podopatření SCLLD | D3: Identifikace programu | H3: Plán financování | N3: Nezpůsobilé výdaje (v tis. Kč)
D4: Program | E4: Prioritní osa / Priorita Unie | F4: Investiční priorita OP / Prioritní oblast | G4: Specifický cíl OP / Operace PRV | H4: Celkové způsobilé výdaje (CZV) | I4: z toho podpora | K4: z toho vlastní zdroje příjemců
I5: Příspěvek Unie (a) | J5: Národní veřejné zdroje (SR, SF) (b) | K5: Národní veřejné zdroje (kraj, obce, jiné) ( c ) | L5: Národní soukromé zdroje (d) | M5: Soukromé zdroje PRV
A6: SC1 | B6: O 1.1. | C6: 1.1.1. Ochrana regionu | D6: IROP | E6: 4 | F6: 9d | G6: 4.1. | H6: =H30+H54+H78+H102+H126++H150+H174+H198 -> 6,334,642.00 | I6: =I30+I54+I78+I102+I126++I150+I174+I198 -> 6,017,909.90 | J6: =J30+J54+J78+J102+J126++J150+J174+J198 -> 0.00 | K6: =K30+K54+K78+K102+K126++K150+K174+K198 -> 316,732.10 | L6: =L30+L54+L78+L102+L126++L150+L174+L198 -> 0.00 | M6: xxx | N6: =N30+N54+N78+N102+N126++N150+N174+N198 -> 0.00
C7: 1.1.2. Krajina je naše zrcadlo | D7: OP ŽP | E7: 4 | F7: 1 | G7: 4.3. | H7: 15,101,400.00 | I7: 12,836,190.00 | J7: 0.00 | K7: 1,534,107.09 | L7: 731,102.91 | M7: xxx | N7: 0.00
A8: SC 2 | B8: O 2.3. | C8: 2.3.1. Rekreační lesy | D8: PRV | E8: 6 | F8: 6b | G8: 19.2. | H8: 2,924,582.00 | I8: 1,871,731.00 | J8: 1,052,851.00 | K8: xxx | L8: xxx | M8: 0.00 | N8: 0.00 | O8: =I8+J8 -> 2,924,582.00
A9: SC 3 | B9: O 3.1. | C9: 3.1.1.Podpora a rozvoj občanské vybavenosti | D9: PRV | E9: 6 | F9: 6b | G9: 19.3. | H9: 1,506,008.00 | I9: 867,386.00 | J9: 487,904.00 | K9: xxx | L9: xxx | M9: 150,718.00 | N9: 0.00 | O9: =I9+J9 -> 1,355,290.00
C10: 3.1.6. Základní služby a obnova vesnic ve venkovských oblastech | D10: PRV | E10: 6 | F10: 6b | G10: 19.2. | H10: 20,310,245.00 | I10: 10,398,846.00 | J10: 5,849,350.00 | K10: xxx | L10: xxx | M10: 4,062,049.00 | N10: 0.00 | O10: 16,248,196.00
C11: 3.1.4. Sociální služby | D11: OP ZAM | E11: 2 | F11: 3 | G11: 2.3. | H11: 3,259,750.00 | I11: 2,770,787.50 | J11: 488,962.50 | K11: 0.00 | L11: 0.00 | M11: xxx | N11: 0.00
C12: 3.1.5. Bezpečná a dostupná doprava | D12: IROP | E12: 4 | F12: 9d | G12: 4.1. | H12: =H36+H60+H84+H108+H132++H156+H180+H204 -> 30,869,226.49 | I12: =I36+I60+I84+I108+I132++I156+I180+I204 -> 29,325,764.40 | J12: =J36+J60+J84+J108+J132++J156+J180+J204 -> 0.00 | K12: =K36+K60+K84+K108+K132++K156+K180+K204 -> 1,543,462.09 | L12: =L36+L60+L84+L108+L132++L156+L180+L204 -> 0.00 | M12: xxx | N12: =N36+N60+N84+N108+N132++N156+N180+N204 -> 0.00 | O12: =H12-I12 -> 1,543,462.09
B13: O3.2. | C13: 3.2.1. Podpora místních trhů | D13: PRV | E13: 6 | F13: 6b | G13: 19.2. | H13: 0.00 | I13: 0.00 | J13: 0.00 | K13: xxx | L13: xxx | M13: 0.00 | N13: 0.00 | O13: =I13+J13 -> 0.00
C14: 3.2.2. Regionální produkce | D14: PRV | E14: 6 | F14: 6b | G14: 19.2. | H14: 1,994,399.00 | I14: 638,207.00 | J14: 358,992.00 | K14: xxx | L14: xxx | M14: 997,200.00 | N14: 0.00 | O14: 997,199.00
B15: O 3.3. | C15: 3.3.1. Krajina krásnější | D15: PRV | E15: 6 | F15: 6b | G15: 19.2. | H15: 12,959,513.00 | I15: 4,363,255.00 | J15: 2,454,334.00 | K15: xxx | L15: xxx | M15: 6,141,924.00 | N15: 0.00 | O15: 6,817,589.00
C16: 3.3.2. Rozvoj nezemědělské činnosti | D16: PRV | E16: 6 | F16: 6b | G16: 19.2. | H16: 4,071,392.00 | I16: 907,567.00 | J16: 510,507.00 | K16: xxx | L16: xxx | M16: 2,653,318.00 | N16: 0.00 | O16: =I16+J16 -> 1,418,074.00
C17: 3.3.3. Lesnická infrastruktura | D17: PRV | E17: 6 | F17: 6b | G17: 19.2. | H17: 0.00 | I17: 0.00 | J17: 0.00 | K17: xxx | L17: xxx | M17: 0.00 | N17: 0.00 | O17: 0.00
C18: 3.3.4. Lesnická technika | D18: PRV | E18: 6 | F18: 6b | G18: 19.2. | H18: 0.00 | I18: 0.00 | J18: 0.00 | K18: xxx | L18: xxx | M18: 0.00 | N18: 0.00 | O18: 0.00
B19: O 3.4. | C19: 3.4.1. Rozvoj sociálního podnikání | D19: IROP | E19: 4 | F19: 9d | G19: 4.1. | H19: =H43+H67+H91+H115+H139++H163+H187+H211 -> 0.00 | I19: =I43+I67+I91+I115+I139++I163+I187+I211 -> 0.00 | J19: =J43+J67+J91+J115+J139++J163+J187+J211 -> 0.00 | K19: =K43+K67+K91+K115+K139++K163+K187+K211 -> 0.00 | L19: 116826.9 | M19: xxx | N19: =N43+N67+N91+N115+N139++N163+N187+N211 -> 0.00
C20: 3.4.2. Vzděláváním k zaměstnanosti | D20: OP ZAM | E20: 2 | F20: 3 | G20: 2.3. | H20: 2,585,100.00 | I20: 2,197,335.00 | J20: 387,765.00 | K20: 0.00 | L20: 0.00 | M20: xxx | N20: 0.00
C21: 3.4.3. Sociální podnikání | D21: OP ZAM | E21: 2 | F21: 3 | G21: 2.3. | H21: 3,911,700.00 | I21: 3,324,945.00 | J21: 0.00 | K21: 586,755.00 | L21: 0.00 | M21: xxx | N21: 0.00
C22: 3.4.4. Kvalita a dostupnost sociálních služeb | D22: IROP | E22: 4 | F22: 9d | G22: 4.1. | H22: =H46+H70+H94+H118+H142++H166+H190+H214 -> 6,132,372.39 | I22: =I46+I70+I94+I118+I142++I166+I190+I214 -> 5,825,753.77 | J22: =J46+J70+J94+J118+J142++J166+J190+J214 -> 0.00 | K22: 0.00 | L22: =L46+L70+L94+L118+L142++L166+L190+L214 -> 306,618.62 | M22: xxx | N22: =N46+N70+N94+N118+N142++N166+N190+N214 -> 0.00
C23: 3.4.5. Prorodinná opatření | D23: OP ZAM | E23: 2 | F23: 3 | G23: 2.3. | H23: 4,755,330.00 | I23: 4,042,030.50 | J23: 713,299.50 | K23: 0.00 | L23: 0.00 | M23: xxx | N23: 0.00
A24: SC 4 | B24: O 4.1. | C24: 4.1.1. Školy dostupné všem | D24: IROP | E24: 4 | F24: 9d | G24: 4.1. | H24: =H48+H72+H96+H120+H144++H168+H192+H216 -> 15,898,397.76 | I24: =I48+I72+I96+I120+I144++I168+I192+I216 -> 15,103,477.87 | J24: =J48+J72+J96+J120+J144++J168+J192+J216 -> 0.00 | K24: =K48+K72+K96+K120+K144++K168+K192+K216 -> 665,143.38 | L24: =L48+L72+L96+L120+L144++L168+L192+L216 -> 129,776.51 | M24: xxx | N24: =N48+N72+N96+N120+N144++N168+N192+N216 -> 0.00
A26: R0k 2016
A27: Specifický cíl SCLLD | B27: Opatření SCLLD | C27: Podopatření SCLLD | D27: Identifikace programu | H27: Plán financování | N27: Nezpůsobilé výdaje (v tis. Kč)
D28: Program | E28: Prioritní osa / Priorita Unie | F28: Investiční priorita OP / Prioritní oblast | G28: Specifický cíl OP / Operace PRV | H28: Celkové způsobilé výdaje (CZV) | I28: z toho podpora | K28: z toho vlastní zdroje příjemců
I29: Příspěvek Unie (a) | J29: Národní veřejné zdroje (SR, SF) (b) | K29: Národní veřejné zdroje (kraj, obce, jiné) ( c ) | L29: Národní soukromé zdroje (d) | M29: Soukromé zdroje PRV
A30: SC1 | B30: O 1.1. | C30: 1.1.1. Ochrana regionu | D30: IROP | E30: 4 | F30: 9d | G30: 4.1. | H30: 0.00 | I30: 0.00 | J30: 0.00 | K30: 0.00 | L30: 0.00 | M30: xxx | N30: 0.00
C31: 1.1.2. Krajina je naše zrcadlo | D31: OP ŽP | E31: 4 | F31: 1 | G31: 4.3. | H31: 0.00 | I31: 0.00 | J31: 0.00 | K31: 0.00 | L31: 0.00 | M31: xxx | N31: 0.00
A32: SC 2 | B32: O 2.3. | C32: 2.3.1. Rekreační lesy | D32: PRV | E32: 6 | F32: 6b | G32: 19.2. | H32: 0.00 | I32: 0.00 | J32: 0.00 | K32: xxx | L32: xxx | M32: 0.00 | N32: 0.00
A33: SC 3 | B33: O 3.1. | C33: 3.1.1.Podpora a rozvoj občanské vybavenosti | D33: PRV | E33: 6 | F33: 6b | G33: 19.3. | H33: 0.00 | I33: 0.00 | J33: 0.00 | K33: xxx | L33: xxx | M33: 0.00 | N33: 0.00
C34: 3.1.6. Základní služby a obnova vesnic ve venkovských oblastech | D34: PRV | E34: 6 | F34: 6b | G34: 19.2. | H34: 0.00 | I34: 0.00 | J34: 0.00 | K34: xxx | L34: xxx | M34: 0.00 | N34: 0.00
C35: 3.1.4. Sociální služby | D35: OP ZAM | E35: 2 | F35: 3 | G35: 2.3. | H35: 0.00 | I35: 0.00 | J35: 0.00 | K35: 0.00 | L35: 0.00 | M35: xxx | N35: 0.00
C36: 3.1.5. Bezpečná a dostupná doprava | D36: IROP | E36: 4 | F36: 9d | G36: 4.1. | H36: 0.00 | I36: 0.00 | J36: 0.00 | K36: 0.00 | L36: 0.00 | M36: xxx | N36: 0.00
B37: O3.2. | C37: 3.2.1. Podpora místních trhů | D37: PRV | E37: 6 | F37: 6b | G37: 19.2. | H37: 0.00 | I37: 0.00 | J37: 0.00 | K37: xxx | L37: xxx | M37: 0.00 | N37: 0.00
C38: 3.2.2. Regionální produkce | D38: PRV | E38: 6 | F38: 6b | G38: 19.2. | H38: 0.00 | I38: 0.00 | J38: 0.00 | K38: xxx | L38: xxx | M38: 0.00 | N38: 0.00
B39: O 3.3. | C39: 3.3.1. Krajina krásnější | D39: PRV | E39: 6 | F39: 6b | G39: 19.2. | H39: 0.00 | I39: 0.00 | J39: 0.00 | K39: xxx | L39: xxx | M39: 0.00 | N39: 0.00
C40: 3.3.2. Rozvoj nezemědělské činnosti | D40: PRV | E40: 6 | F40: 6b | G40: 19.2. | H40: 0.00 | I40: 0.00 | J40: 0.00 | K40: xxx | L40: xxx | M40: 0.00 | N40: 0.00
C41: 3.3.3. Lesnická infrastruktura | D41: PRV | E41: 6 | F41: 6b | G41: 19.2. | H41: 0.00 | I41: 0.00 | J41: 0.00 | K41: xxx | L41: xxx | M41: 0.00 | N41: 0.00
C42: 3.3.4. Lesnická technika | D42: PRV | E42: 6 | F42: 6b | G42: 19.2. | H42: 0.00 | I42: 0.00 | J42: 0.00 | K42: xxx | L42: xxx | M42: 0.00 | N42: 0.00
B43: O 3.4. | C43: 3.4.1. Rozvoj sociálního podnikání | D43: IROP | E43: 4 | F43: 9d | G43: 4.1. | H43: 0.00 | I43: 0.00 | J43: 0.00 | K43: 0.00 | L43: 0.00 | M43: xxx | N43: 0.00
C44: 3.4.2. Vzděláváním k zaměstnanosti | D44: OP ZAM | E44: 2 | F44: 3 | G44: 2.3. | H44: 0.00 | I44: 0.00 | J44: 0.00 | K44: 0.00 | L44: 0.00 | M44: xxx | N44: 0.00
C45: 3.4.3. Sociální podnikání | D45: OP ZAM | E45: 2 | F45: 3 | G45: 2.3. | H45: 0.00 | I45: 0.00 | J45: 0.00 | K45: 0.00 | L45: 0.00 | M45: xxx | N45: 0.00
C46: 3.4.4. Kvalita a dostupnost sociálních služeb | D46: IROP | E46: 4 | F46: 9d | G46: 4.1. | H46: 0.00 | I46: 0.00 | J46: 0.00 | K46: 0.00 | L46: 0.00 | M46: xxx | N46: 0.00
C47: 3.4.5. Prorodinná opatření | D47: OP ZAM | E47: 2 | F47: 3 | G47: 2.3. | H47: 0.00 | I47: 0.00 | J47: 0.00 | K47: 0.00 | L47: 0.00 | M47: xxx | N47: 0.00
A48: SC 4 | B48: O 4.1. | C48: 4.1.1. Školy dostupné všem | D48: IROP | E48: 4 | F48: 9d | G48: 4.1. | H48: 0.00 | I48: 0.00 | J48: 0.00 | K48: 0.00 | L48: 0.00 | M48: xxx | N48: 0.00
A50: Rok 2017
A51: Specifický cíl SCLLD | B51: Opatření SCLLD | C51: Podopatření SCLLD | D51: Identifikace programu | H51: Plán financování | N51: Nezpůsobilé výdaje (v tis. Kč)
D52: Program | E52: Prioritní osa / Priorita Unie | F52: Investiční priorita OP / Prioritní oblast | G52: Specifický cíl OP / Operace PRV | H52: Celkové způsobilé výdaje (CZV) | I52: z toho podpora | K52: z toho vlastní zdroje příjemců
I53: Příspěvek Unie (a) | J53: Národní veřejné zdroje (SR, SF) (b) | K53: Národní veřejné zdroje (kraj, obce, jiné) ( c ) | L53: Národní soukromé zdroje (d) | M53: Soukromé zdroje PRV
A54: SC1 | B54: O 1.1. | C54: 1.1.1. Ochrana regionu | D54: IROP | E54: 4 | F54: 9d | G54: 4.1. | H54: 0.00 | I54: 0.00 | J54: 0.00 | K54: 0.00 | L54: 0.00 | M54: xxx | N54: 0.00
C55: 1.1.2. Krajina je naše zrcadlo | D55: OP ŽP | E55: 4 | F55: 1 | G55: 4.3. | H55: 0.00 | I55: 0.00 | J55: 0.00 | K55: 0.00 | L55: 0.00 | M55: xxx | N55: 0.00
A56: SC 2 | B56: O 2.3. | C56: 2.3.1. Rekreační lesy | D56: PRV | E56: 6 | F56: 6b | G56: 19.2. | H56: 0.00 | I56: 0.00 | J56: 0.00 | K56: xxx | L56: xxx | M56: 0.00 | N56: 0.00
A57: SC 3 | B57: O 3.1. | C57: 3.1.1.Podpora a rozvoj občanské vybavenosti | D57: PRV | E57: 6 | F57: 6b | G57: 19.3. | H57: 0.00 | I57: 0.00 | J57: 0.00 | K57: xxx | L57: xxx | M57: 0.00 | N57: 0.00
C58: 3.1.6. Základní služby a obnova vesnic ve venkovských oblastech | D58: PRV | E58: 6 | F58: 6b | G58: 19.2. | H58: 0.00 | I58: 0.00 | J58: 0.00 | K58: xxx | L58: xxx | M58: 0.00 | N58: 0.00
C59: 3.1.4. Sociální služby | D59: OP ZAM | E59: 2 | F59: 3 | G59: 2.3. | H59: 0.00 | I59: 0.00 | J59: 0.00 | K59: 0.00 | L59: 0.00 | M59: xxx | N59: 0.00
C60: 3.1.5. Bezpečná a dostupná doprava | D60: IROP | E60: 4 | F60: 9d | G60: 4.1. | H60: 0.00 | I60: 0.00 | J60: 0.00 | K60: 0.00 | L60: 0.00 | M60: xxx | N60: 0.00
B61: O3.2. | C61: 3.2.1. Podpora místních trhů | D61: PRV | E61: 6 | F61: 6b | G61: 19.2. | H61: 0.00 | I61: 0.00 | J61: 0.00 | K61: xxx | L61: xxx | M61: 0.00 | N61: 0.00
C62: 3.2.2. Regionální produkce | D62: PRV | E62: 6 | F62: 6b | G62: 19.2. | H62: 0.00 | I62: 0.00 | J62: 0.00 | K62: xxx | L62: xxx | M62: 0.00 | N62: 0.00
B63: O 3.3. | C63: 3.3.1. Krajina krásnější | D63: PRV | E63: 6 | F63: 6b | G63: 19.2. | H63: 0.00 | I63: 0.00 | J63: 0.00 | K63: xxx | L63: xxx | M63: 0.00 | N63: 0.00
C64: 3.3.2. Rozvoj nezemědělské činnosti | D64: PRV | E64: 6 | F64: 6b | G64: 19.2. | H64: 0.00 | I64: 0.00 | J64: 0.00 | K64: xxx | L64: xxx | M64: 0.00 | N64: 0.00
C65: 3.3.3. Lesnická infrastruktura | D65: PRV | E65: 6 | F65: 6b | G65: 19.2. | H65: 0.00 | I65: 0.00 | J65: 0.00 | K65: xxx | L65: xxx | M65: 0.00 | N65: 0.00
C66: 3.3.4. Lesnická technika | D66: PRV | E66: 6 | F66: 6b | G66: 19.2. | H66: 0.00 | I66: 0.00 | J66: 0.00 | K66: xxx | L66: xxx | M66: 0.00 | N66: 0.00
B67: O 3.4. | C67: 3.4.1. Rozvoj sociálního podnikání | D67: IROP | E67: 4 | F67: 9d | G67: 4.1. | H67: 0.00 | I67: 0.00 | J67: 0.00 | K67: 0.00 | L67: 0.00 | M67: xxx | N67: 0.00
C68: 3.4.2. Vzděláváním k zaměstnanosti | D68: OP ZAM | E68: 2 | F68: 3 | G68: 2.3. | H68: 0.00 | I68: 0.00 | J68: 0.00 | K68: 0.00 | L68: 0.00 | M68: xxx | N68: 0.00
C69: 3.4.3. Sociální podnikání | D69: OP ZAM | E69: 2 | F69: 3 | G69: 2.3. | H69: 0.00 | I69: 0.00 | J69: 0.00 | K69: 0.00 | L69: 0.00 | M69: xxx | N69: 0.00
C70: 3.4.4. Kvalita a dostupnost sociálních služeb | D70: IROP | E70: 4 | F70: 9d | G70: 4.1. | H70: 0.00 | I70: 0.00 | J70: 0.00 | K70: 0.00 | L70: 0.00 | M70: xxx | N70: 0.00
C71: 3.4.5. Prorodinná opatření | D71: OP ZAM | E71: 2 | F71: 3 | G71: 2.3. | H71: 0.00 | I71: 0.00 | J71: 0.00 | K71: 0.00 | L71: 0.00 | M71: xxx | N71: 0.00
A72: SC 4 | B72: O 4.1. | C72: 4.1.1. Školy dostupné všem | D72: IROP | E72: 4 | F72: 9d | G72: 4.1. | H72: 0.00 | I72: 0.00 | J72: 0.00 | K72: 0.00 | L72: 0.00 | M72: xxx | N72: 0.00
A74: Rok 2018
A75: Specifický cíl SCLLD | B75: Opatření SCLLD | C75: Podopatření SCLLD | D75: Identifikace programu | H75: Plán financování | N75: Nezpůsobilé výdaje (v tis. Kč)
D76: Program | E76: Prioritní osa / Priorita Unie | F76: Investiční priorita OP / Prioritní oblast | G76: Specifický cíl OP / Operace PRV | H76: Celkové způsobilé výdaje (CZV) | I76: z toho podpora | K76: z toho vlastní zdroje příjemců
I77: Příspěvek Unie (a) | J77: Národní veřejné zdroje (SR, SF) (b) | K77: Národní veřejné zdroje (kraj, obce, jiné) ( c ) | L77: Národní soukromé zdroje (d) | M77: Soukromé zdroje PRV
A78: SC1 | B78: O 1.1. | C78: 1.1.1. Ochrana regionu | D78: IROP | E78: 4 | F78: 9d | G78: 4.1. | H78: 999,867.00 | I78: 949,873.65 | J78: 0.00 | K78: =H78-I78 -> 49,993.35 | L78: 0.00 | M78: xxx | N78: 0.00
C79: 1.1.2. Krajina je naše zrcadlo | D79: OP ŽP | E79: 4 | F79: 1 | G79: 4.3. | H79: 0.00 | I79: 0.00 | J79: 0.00 | K79: 0.00 | L79: 0.00 | M79: xxx | N79: 0.00
A80: SC 2 | B80: O 2.3. | C80: 2.3.1. Rekreační lesy | D80: PRV | E80: 6 | F80: 6b | G80: 19.2. | H80: 999,969.00 | I80: 639,980.00 | J80: 359,989.00 | K80: xxx | L80: xxx | M80: 0.00 | N80: 0.00
A81: SC 3 | B81: O 3.1. | C81: 3.1.1.Podpora a rozvoj občanské vybavenosti | D81: PRV | E81: 6 | F81: 6b | G81: 19.3. | H81: 755,130.00 | I81: 434,880.00 | J81: 244,620.00 | K81: xxx | L81: xxx | M81: 75,630.00 | N81: 0.00
C82: 3.1.6. Základní služby a obnova vesnic ve venkovských oblastech | D82: PRV | E82: 6 | F82: 6b | G82: 19.2. | H82: 0.00 | I82: 0.00 | J82: 0.00 | K82: xxx | L82: xxx | M82: 0.00 | N82: 0.00
C83: 3.1.4. Sociální služby | D83: OP ZAM | E83: 2 | F83: 3 | G83: 2.3. | H83: 0.00 | I83: 0.00 | J83: 0.00 | K83: 0.00 | L83: 0.00 | M83: xxx | N83: 0.00
C84: 3.1.5. Bezpečná a dostupná doprava | D84: IROP | E84: 4 | F84: 9d | G84: 4.1. | H84: 0.00 | I84: 0.00 | J84: 0.00 | K84: 0.00 | L84: 0.00 | M84: xxx | N84: 0.00
B85: O3.2. | C85: 3.2.1. Podpora místních trhů | D85: PRV | E85: 6 | F85: 6b | G85: 19.2. | H85: 0.00 | I85: 0.00 | J85: 0.00 | K85: xxx | L85: xxx | M85: 0.00 | N85: 0.00
C86: 3.2.2. Regionální produkce | D86: PRV | E86: 6 | F86: 6b | G86: 19.2. | H86: 0.00 | I86: 0.00 | J86: 0.00 | K86: xxx | L86: xxx | M86: 0.00 | N86: 0.00
B87: O 3.3. | C87: 3.3.1. Krajina krásnější | D87: PRV | E87: 6 | F87: 6b | G87: 19.2. | H87: 3,747,883.00 | I87: 1,315,602.00 | J87: 740,027.00 | K87: xxx | L87: xxx | M87: 1,692,254.00 | N87: 0.00
C88: 3.3.2. Rozvoj nezemědělské činnosti | D88: PRV | E88: 6 | F88: 6b | G88: 19.2. | H88: 906,000.00 | I88: 260,928.00 | J88: 146,772.00 | K88: xxx | L88: xxx | M88: 498,300.00 | N88: 0.00
C89: 3.3.3. Lesnická infrastruktura | D89: PRV | E89: 6 | F89: 6b | G89: 19.2. | H89: 0.00 | I89: 0.00 | J89: 0.00 | K89: xxx | L89: xxx | M89: 0.00 | N89: 0.00
C90: 3.3.4. Lesnická technika | D90: PRV | E90: 6 | F90: 6b | G90: 19.2. | H90: 0.00 | I90: 0.00 | J90: 0.00 | K90: xxx | L90: xxx | M90: 0.00 | N90: 0.00
B91: O 3.4. | C91: 3.4.1. Rozvoj sociálního podnikání | D91: IROP | E91: 4 | F91: 9d | G91: 4.1. | H91: 0.00 | I91: 0.00 | J91: 0.00 | K91: 0.00 | L91: 0.00 | M91: xxx | N91: 0.00
C92: 3.4.2. Vzděláváním k zaměstnanosti | D92: OP ZAM | E92: 2 | F92: 3 | G92: 2.3. | H92: 0.00 | I92: 0.00 | J92: 0.00 | K92: 0.00 | L92: 0.00 | M92: xxx | N92: 0.00
C93: 3.4.3. Sociální podnikání | D93: OP ZAM | E93: 2 | F93: 3 | G93: 2.3. | H93: 0.00 | I93: 0.00 | J93: 0.00 | K93: 0.00 | L93: 0.00 | M93: xxx | N93: 0.00
C94: 3.4.4. Kvalita a dostupnost sociálních služeb | D94: IROP | E94: 4 | F94: 9d | G94: 4.1. | H94: 0.00 | I94: 0.00 | J94: 0.00 | K94: 0.00 | L94: 0.00 | M94: xxx | N94: 0.00
C95: 3.4.5. Prorodinná opatření | D95: OP ZAM | E95: 2 | F95: 3 | G95: 2.3. | H95: 741,210.00 | I95: 630,028.50 | J95: 111,181.50 | K95: 0.00 | L95: 0.00 | M95: xxx | N95: 0.00
A96: SC 4 | B96: O 4.1. | C96: 4.1.1. Školy dostupné všem | D96: IROP | E96: 4 | F96: 9d | G96: 4.1. | H96: 0.00 | I96: 0.00 | J96: 0.00 | K96: 0.00 | L96: 0.00 | M96: xxx | N96: 0.00
A98: Rok 2019
A99: Specifický cíl SCLLD | B99: Opatření SCLLD | C99: Podopatření SCLLD | D99: Identifikace programu | H99: Plán financování | N99: Nezpůsobilé výdaje (v tis. Kč)
D100: Program | E100: Prioritní osa / Priorita Unie | F100: Investiční priorita OP / Prioritní oblast | G100: Specifický cíl OP / Operace PRV | H100: Celkové způsobilé výdaje (CZV) | I100: z toho podpora | K100: z toho vlastní zdroje příjemců
I101: Příspěvek Unie (a) | J101: Národní veřejné zdroje (SR, SF) (b) | K101: Národní veřejné zdroje (kraj, obce, jiné) ( c ) | L101: Národní soukromé zdroje (d) | M101: Soukromé zdroje PRV
A102: SC1 | B102: O 1.1. | C102: 1.1.1. Ochrana regionu | D102: IROP | E102: 4 | F102: 9d | G102: 4.1. | H102: 0.00 | I102: 0.00 | J102: 0.00 | K102: 0.00 | L102: 0.00 | M102: xxx | N102: 0.00
C103: 1.1.2. Krajina je naše zrcadlo | D103: OP ŽP | E103: 4 | F103: 1 | G103: 4.3. | H103: 0.00 | I103: 0.00 | J103: 0.00 | K103: 0.00 | L103: 0.00 | M103: xxx | N103: 0.00
A104: SC 2 | B104: O 2.3. | C104: 2.3.1. Rekreační lesy | D104: PRV | E104: 6 | F104: 6b | G104: 19.2. | H104: 1,924,613.00 | I104: 1,231,751.00 | J104: 692,862.00 | K104: xxx | L104: xxx | M104: 0.00 | N104: 0.00
A105: SC 3 | B105: O 3.1. | C105: 3.1.1.Podpora a rozvoj občanské vybavenosti | D105: PRV | E105: 6 | F105: 6b | G105: 19.3. | H105: 0.00 | I105: 0.00 | J105: 0.00 | K105: xxx | L105: xxx | M105: 0.00 | N105: 0.00
C106: 3.1.6. Základní služby a obnova vesnic ve venkovských oblastech | D106: PRV | E106: 6 | F106: 6b | G106: 19.2. | H106: 0.00 | I106: 0.00 | J106: 0.00 | K106: xxx | L106: xxx | M106: 0.00 | N106: 0.00
C107: 3.1.4. Sociální služby | D107: OP ZAM | E107: 2 | F107: 3 | G107: 2.3. | H107: 0.00 | I107: 0.00 | J107: 0.00 | K107: 0.00 | L107: 0.00 | M107: xxx | N107: 0.00
C108: 3.1.5. Bezpečná a dostupná doprava | D108: IROP | E108: 4 | F108: 9d | G108: 4.1. | H108: 1,720,000.00 | I108: 1,634,000.00 | J108: 0.00 | K108: =H108-I108 -> 86,000.00 | L108: 0.00 | M108: xxx | N108: 0.00
B109: O3.2. | C109: 3.2.1. Podpora místních trhů | D109: PRV | E109: 6 | F109: 6b | G109: 19.2. | H109: 0.00 | I109: 0.00 | J109: 0.00 | K109: xxx | L109: xxx | M109: 0.00 | N109: 0.00
C110: 3.2.2. Regionální produkce | D110: PRV | E110: 6 | F110: 6b | G110: 19.2. | H110: 0.00 | I110: 0.00 | J110: 0.00 | K110: xxx | L110: xxx | M110: 0.00 | N110: 0.00
B111: O 3.3. | C111: 3.3.1. Krajina krásnější | D111: PRV | E111: 6 | F111: 6b | G111: 19.2. | H111: 7,993,866.00 | I111: 2,658,087.00 | J111: 1,495,176.00 | K111: xxx | L111: xxx | M111: 3,840,603.00 | N111: 0.00
C112: 3.3.2. Rozvoj nezemědělské činnosti | D112: PRV | E112: 6 | F112: 6b | G112: 19.2. | H112: 0.00 | I112: 0.00 | J112: 0.00 | K112: xxx | L112: xxx | M112: 0.00 | N112: 0.00
C113: 3.3.3. Lesnická infrastruktura | D113: PRV | E113: 6 | F113: 6b | G113: 19.2. | H113: 0.00 | I113: 0.00 | J113: 0.00 | K113: xxx | L113: xxx | M113: 0.00 | N113: 0.00
C114: 3.3.4. Lesnická technika | D114: PRV | E114: 6 | F114: 6b | G114: 19.2. | H114: 0.00 | I114: 0.00 | J114: 0.00 | K114: xxx | L114: xxx | M114: 0.00 | N114: 0.00
B115: O 3.4. | C115: 3.4.1. Rozvoj sociálního podnikání | D115: IROP | E115: 4 | F115: 9d | G115: 4.1. | H115: 0.00 | I115: 0.00 | J115: 0.00 | K115: 0.00 | L115: 0.00 | M115: xxx | N115: 0.00
C116: 3.4.2. Vzděláváním k zaměstnanosti | D116: OP ZAM | E116: 2 | F116: 3 | G116: 2.3. | H116: 430,850.00 | I116: 366,222.50 | J116: 64,627.50 | K116: 0.00 | L116: 0.00 | M116: xxx | N116: 0.00
C117: 3.4.3. Sociální podnikání | D117: OP ZAM | E117: 2 | F117: 3 | G117: 2.3. | H117: 0.00 | I117: 0.00 | J117: 0.00 | K117: 0.00 | L117: 0.00 | M117: xxx | N117: 0.00
C118: 3.4.4. Kvalita a dostupnost sociálních služeb | D118: IROP | E118: 4 | F118: 9d | G118: 4.1. | H118: 1,574,813.39 | I118: 1,496,072.72 | J118: 0.00 | K118: 0.00 | L118: =H118-I118 -> 78,740.67 | M118: xxx | N118: 0.00
C119: 3.4.5. Prorodinná opatření | D119: OP ZAM | E119: 2 | F119: 3 | G119: 2.3. | H119: 1,191,700.00 | I119: 1,012,945.00 | J119: 178,755.00 | K119: 0.00 | L119: 0.00 | M119: xxx | N119: 0.00
A120: SC 4 | B120: O 4.1. | C120: 4.1.1. Školy dostupné všem | D120: IROP | E120: 4 | F120: 9d | G120: 4.1. | H120: 4,000,000.00 | I120: 3,800,000.00 | J120: 0.00 | K120: =H120-I120 -> 200,000.00 | L120: 0.00 | M120: xxx | N120: 0.00
A122: Rok 2020
A123: Specifický cíl SCLLD | B123: Opatření SCLLD | C123: Podopatření SCLLD | D123: Identifikace programu | H123: Plán financování | N123: Nezpůsobilé výdaje (v tis. Kč)
D124: Program | E124: Prioritní osa / Priorita Unie | F124: Investiční priorita OP / Prioritní oblast | G124: Specifický cíl OP / Operace PRV | H124: Celkové způsobilé výdaje (CZV) | I124: z toho podpora | K124: z toho vlastní zdroje příjemců
I125: Příspěvek Unie (a) | J125: Národní veřejné zdroje (SR, SF) (b) | K125: Národní veřejné zdroje (kraj, obce, jiné) ( c ) | L125: Národní soukromé zdroje (d) | M125: Soukromé zdroje PRV
A126: SC1 | B126: O 1.1. | C126: 1.1.1. Ochrana regionu | D126: IROP | E126: 4 | F126: 9d | G126: 4.1. | H126: 5,334,775.00 | I126: 5,068,036.25 | J126: 0.00 | K126: =H126-I126 -> 266,738.75 | L126: 0.00 | M126: xxx | N126: 0.00
C127: 1.1.2. Krajina je naše zrcadlo | D127: OP ŽP | E127: 4 | F127: 1 | G127: 4.3. | H127: 479,341.88 | I127: 407,440.59 | J127: 0.00 | K127: 71,901.29 | L127: 0.00 | M127: xxx | N127: 0.00
A128: SC 2 | B128: O 2.3. | C128: 2.3.1. Rekreační lesy | D128: PRV | E128: 6 | F128: 6b | G128: 19.2. | H128: 0.00 | I128: 0.00 | J128: 0.00 | K128: xxx | L128: xxx | M128: 0.00 | N128: 0.00
A129: SC 3 | B129: O 3.1. | C129: 3.1.1.Podpora a rozvoj občanské vybavenosti | D129: PRV | E129: 6 | F129: 6b | G129: 19.3. | H129: 750,878.00 | I129: 432,506.00 | J129: 243,284.00 | K129: xxx | L129: xxx | M129: 75,088.00 | N129: 0.00
C130: 3.1.6. Základní služby a obnova vesnic ve venkovských oblastech | D130: PRV | E130: 6 | F130: 6b | G130: 19.2. | H130: 20,310,245.00 | I130: 10,398,846.00 | J130: 5,849,350.00 | K130: xxx | L130: xxx | M130: 4,062,049.00 | N130: 0.00
C131: 3.1.4. Sociální služby | D131: OP ZAM | E131: 2 | F131: 3 | G131: 2.3. | H131: 1,119,010.00 | I131: 951,158.50 | J131: 167,851.50 | K131: 0.00 | L131: 0.00 | M131: 0.00 | N131: 0.00
C132: 3.1.5. Bezpečná a dostupná doprava | D132: IROP | E132: 4 | F132: 9d | G132: 4.1. | H132: 18,992,961.13 | I132: 18,043,313.07 | J132: 0.00 | K132: =H132-I132 -> 949,648.06 | L132: 0.00 | M132: 0.00 | N132: 0.00
B133: O3.2. | C133: 3.2.1. Podpora místních trhů | D133: PRV | E133: 6 | F133: 6b | G133: 19.2. | H133: 0.00 | I133: 0.00 | J133: 0.00 | K133: xxx | L133: xxx | M133: 0.00 | N133: 0.00
C134: 3.2.2. Regionální produkce | D134: PRV | E134: 6 | F134: 6b | G134: 19.2. | H134: 1,994,399.00 | I134: 638,207.00 | J134: 358,992.00 | K134: xxx | L134: xxx | M134: 997,200.00 | N134: 0.00
B135: O 3.3. | C135: 3.3.1. Krajina krásnější | D135: PRV | E135: 6 | F135: 6b | G135: 19.2. | H135: 1,217,794.00 | I135: 389,566.00 | J135: 219,131.00 | K135: xxx | L135: xxx | M135: 609,097.00 | N135: 0.00
C136: 3.3.2. Rozvoj nezemědělské činnosti | D136: PRV | E136: 6 | F136: 6b | G136: 19.2. | H136: 3,165,392.00 | I136: 646,639.00 | J136: 363,735.00 | K136: xxx | L136: xxx | M136: 2,155,018.00 | N136: 0.00
C137: 3.3.3. Lesnická infrastruktura | D137: PRV | E137: 6 | F137: 6b | G137: 19.2. | H137: 0.00 | I137: 0.00 | J137: 0.00 | K137: xxx | L137: xxx | M137: 0.00 | N137: 0.00
C138: 3.3.4. Lesnická technika | D138: PRV | E138: 6 | F138: 6b | G138: 19.2. | H138: 0.00 | I138: 0.00 | J138: 0.00 | K138: xxx | L138: xxx | M138: 0.00 | N138: 0.00
B139: O 3.4. | C139: 3.4.1. Rozvoj sociálního podnikání | D139: IROP | E139: 4 | F139: 9d | G139: 4.1. | H139: 0.00 | I139: 0.00 | J139: 0.00 | K139: 0.00 | L139: 0.00 | M139: xxx | N139: 0.00
C140: 3.4.2. Vzděláváním k zaměstnanosti | D140: OP ZAM | E140: 2 | F140: 3 | G140: 2.3. | H140: 861,700.00 | I140: 732,445.00 | J140: 129,255.00 | K140: 0.00 | L140: 0.00 | M140: xxx | N140: 0.00
C141: 3.4.3. Sociální podnikání | D141: OP ZAM | E141: 2 | F141: 3 | G141: 2.3. | H141: 977,930.00 | I141: 831,240.50 | J141: 0.00 | K141: 0.00 | L141: 146,689.50 | M141: xxx | N141: 0.00
C142: 3.4.4. Kvalita a dostupnost sociálních služeb | D142: IROP | E142: 4 | F142: 9d | G142: 4.1. | H142: 4,557,559.00 | I142: 4,329,681.05 | J142: 0.00 | K142: 0.00 | L142: =H142-I142 -> 227,877.95 | M142: xxx | N142: 0.00
C143: 3.4.5. Prorodinná opatření | D143: OP ZAM | E143: 2 | F143: 3 | G143: 2.3. | H143: 1,151,600.00 | I143: 978,860.00 | J143: 172,740.00 | K143: 0.00 | L143: 0.00 | M143: xxx | N143: 0.00
A144: SC 4 | B144: O 4.1. | C144: 4.1.1. Školy dostupné všem | D144: IROP | E144: 4 | F144: 9d | G144: 4.1. | H144: 4,240,986.81 | I144: 4,028,937.47 | J144: 0.00 | K144: =H144-I144-L144 -> 157,248.64 | L144: 54,800.70 | M144: xxx | N144: 0.00
A146: Rok 2021
A147: Specifický cíl SCLLD | B147: Opatření SCLLD | C147: Podopatření SCLLD | D147: Identifikace programu | H147: Plán financování | N147: Nezpůsobilé výdaje (v tis. Kč)
D148: Program | E148: Prioritní osa / Priorita Unie | F148: Investiční priorita OP / Prioritní oblast | G148: Specifický cíl OP / Operace PRV | H148: Celkové způsobilé výdaje (CZV) | I148: z toho podpora | K148: z toho vlastní zdroje příjemců
I149: Příspěvek Unie (a) | J149: Národní veřejné zdroje (SR, SF) (b) | K149: Národní veřejné zdroje (kraj, obce, jiné) ( c ) | L149: Národní soukromé zdroje (d) | M149: Soukromé zdroje PRV
A150: SC1 | B150: O 1.1. | C150: 1.1.1. Ochrana regionu | D150: IROP | E150: 4 | F150: 9d | G150: 4.1. | H150: 0.00 | I150: 0.00 | J150: 0.00 | K150: =H150-I150 -> 0.00 | L150: 0.00 | M150: xxx | N150: 0.00
C151: 1.1.2. Krajina je naše zrcadlo | D151: OP ŽP | E151: 4 | F151: 1 | G151: 4.3. | H151: 4,874,019.37 | I151: 4,142,916.47 | J151: 0.00 | K151: 487,401.93 | L151: 243,700.97 | M151: xxx | N151: 0.00
A152: SC 2 | B152: O 2.3. | C152: 2.3.1. Rekreační lesy | D152: PRV | E152: 6 | F152: 6b | G152: 19.2. | H152: 0.00 | I152: 0.00 | J152: 0.00 | K152: xxx | L152: xxx | M152: 0.00 | N152: 0.00
A153: SC 3 | B153: O 3.1. | C153: 3.1.1.Podpora a rozvoj občanské vybavenosti | D153: PRV | E153: 6 | F153: 6b | G153: 19.3. | H153: 0.00 | I153: 0.00 | J153: 0.00 | K153: xxx | L153: xxx | M153: 0.00 | N153: 0.00
C154: 3.1.6. Základní služby a obnova vesnic ve venkovských oblastech | D154: PRV | E154: 6 | F154: 6b | G154: 19.2. | H154: 0.00 | I154: 0.00 | J154: 0.00 | K154: xxx | L154: xxx | M154: 0.00 | N154: 0.00
C155: 3.1.4. Sociální služby | D155: OP ZAM | E155: 2 | F155: 3 | G155: 2.3. | H155: 1,119,010.00 | I155: 951,158.50 | J155: 167,851.50 | K155: 0.00 | L155: 0.00 | M155: xxx | N155: 0.00
C156: 3.1.5. Bezpečná a dostupná doprava | D156: IROP | E156: 4 | F156: 9d | G156: 4.1. | H156: 10,156,265.36 | I156: 9,648,451.33 | J156: 0.00 | K156: =H156-I156 -> 507,814.03 | L156: 0.00 | M156: xxx | N156: 0.00
B157: O3.2. | C157: 3.2.1. Podpora místních trhů | D157: PRV | E157: 6 | F157: 6b | G157: 19.2. | H157: 0.00 | I157: 0.00 | J157: 0.00 | K157: xxx | L157: xxx | M157: 0.00 | N157: 0.00
C158: 3.2.2. Regionální produkce | D158: PRV | E158: 6 | F158: 6b | G158: 19.2. | H158: 0.00 | I158: 0.00 | J158: 0.00 | K158: xxx | L158: xxx | M158: 0.00 | N158: 0.00
B159: O 3.3. | C159: 3.3.1. Krajina krásnější | D159: PRV | E159: 6 | F159: 6b | G159: 19.2. | H159: 0.00 | I159: 0.00 | J159: 0.00 | K159: xxx | L159: xxx | M159: 0.00 | N159: 0.00
C160: 3.3.2. Rozvoj nezemědělské činnosti | D160: PRV | E160: 6 | F160: 6b | G160: 19.2. | H160: 0.00 | I160: 0.00 | J160: 0.00 | K160: xxx | L160: xxx | M160: 0.00 | N160: 0.00
C161: 3.3.3. Lesnická infrastruktura | D161: PRV | E161: 6 | F161: 6b | G161: 19.2. | H161: 0.00 | I161: 0.00 | J161: 0.00 | K161: xxx | L161: xxx | M161: 0.00 | N161: 0.00
C162: 3.3.4. Lesnická technika | D162: PRV | E162: 6 | F162: 6b | G162: 19.2. | H162: 0.00 | I162: 0.00 | J162: 0.00 | K162: xxx | L162: xxx | M162: 0.00 | N162: 0.00
B163: O 3.4. | C163: 3.4.1. Rozvoj sociálního podnikání | D163: IROP | E163: 4 | F163: 9d | G163: 4.1. | H163: 0.00 | I163: 0.00 | J163: 0.00 | K163: 0.00 | L163: 0.00 | M163: xxx | N163: 0.00
C164: 3.4.2. Vzděláváním k zaměstnanosti | D164: OP ZAM | E164: 2 | F164: 3 | G164: 2.3. | H164: 1,292,550.00 | I164: 1,098,667.50 | J164: 193,882.50 | K164: 0.00 | L164: 0.00 | M164: xxx | N164: 0.00
C165: 3.4.3. Sociální podnikání | D165: OP ZAM | E165: 2 | F165: 3 | G165: 2.3. | H165: 1,955,850.00 | I165: 166,247,250.00 | J165: 0.00 | K165: 293,377.50 | L165: 0.00 | M165: xxx | N165: 0.00
C166: 3.4.4. Kvalita a dostupnost sociálních služeb | D166: IROP | E166: 4 | F166: 9d | G166: 4.1. | H166: 0.00 | I166: 0.00 | J166: 0.00 | K166: =H166-I166 -> 0.00 | L166: 0.00 | M166: xxx | N166: 0.00
C167: 3.4.5. Prorodinná opatření | D167: OP ZAM | E167: 2 | F167: 3 | G167: 2.3. | H167: 1,004,150.00 | I167: 853,527.50 | J167: 150,622.50 | K167: 0.00 | L167: 0.00 | M167: xxx | N167: 0.00
A168: SC 4 | B168: O 4.1. | C168: 4.1.1. Školy dostupné všem | D168: IROP | E168: 4 | F168: 9d | G168: 4.1. | H168: 7,657,410.95 | I168: 7,274,540.40 | J168: 0.00 | K168: =H168-I168-L168 -> 307,894.74 | L168: 74,975.81 | M168: xxx | N168: 0.00
A170: Rok 2022
A171: Specifický cíl SCLLD | B171: Opatření SCLLD | C171: Podopatření SCLLD | D171: Identifikace programu | H171: Plán financování | N171: Nezpůsobilé výdaje (v tis. Kč)
D172: Program | E172: Prioritní osa / Priorita Unie | F172: Investiční priorita OP / Prioritní oblast | G172: Specifický cíl OP / Operace PRV | H172: Celkové způsobilé výdaje (CZV) | I172: z toho podpora | K172: z toho vlastní zdroje příjemců
I173: Příspěvek Unie (a) | J173: Národní veřejné zdroje (SR, SF) (b) | K173: Národní veřejné zdroje (kraj, obce, jiné) ( c ) | L173: Národní soukromé zdroje (d) | M173: Soukromé zdroje PRV
A174: SC1 | B174: O 1.1. | C174: 1.1.1. Ochrana regionu | D174: IROP | E174: 4 | F174: 9d | G174: 4.1. | H174: 0.00 | I174: 0.00 | J174: 0.00 | K174: 0.00 | L174: 0.00 | M174: xxx | N174: 0.00
C175: 1.1.2. Krajina je naše zrcadlo | D175: OP ŽP | E175: 4 | F175: 1 | G175: 4.3. | H175: 4,874,019.37 | I175: 4,142,916.47 | J175: 0.00 | K175: 487,401.93 | L175: 243,700.97 | M175: xxx | N175: 0.00
A176: SC 2 | B176: O 2.3. | C176: 2.3.1. Rekreační lesy | D176: PRV | E176: 6 | F176: 6b | G176: 19.2. | H176: 0.00 | I176: 0.00 | J176: 0.00 | K176: xxx | L176: xxx | M176: 0.00 | N176: 0.00
A177: SC 3 | B177: O 3.1. | C177: 3.1.1.Podpora a rozvoj občanské vybavenosti | D177: PRV | E177: 6 | F177: 6b | G177: 19.3. | H177: 0.00 | I177: 0.00 | J177: 0.00 | K177: xxx | L177: xxx | M177: 0.00 | N177: 0.00
C178: 3.1.6. Základní služby a obnova vesnic ve venkovských oblastech | D178: PRV | E178: 6 | F178: 6b | G178: 19.2. | H178: 0.00 | I178: 0.00 | J178: 0.00 | K178: xxx | L178: xxx | M178: 0.00 | N178: 0.00
C179: 3.1.4. Sociální služby | D179: OP ZAM | E179: 2 | F179: 3 | G179: 2.3. | H179: 1,021,730.00 | I179: 868,470.50 | J179: 153,259.50 | K179: 0.00 | L179: 0.00 | M179: xxx | N179: 0.00
C180: 3.1.5. Bezpečná a dostupná doprava | D180: IROP | E180: 4 | F180: 9d | G180: 4.1. | H180: 0.00 | I180: 0.00 | J180: 0.00 | K180: =H180-I180 -> 0.00 | L180: 0.00 | M180: xxx | N180: 0.00
B181: O3.2. | C181: 3.2.1. Podpora místních trhů | D181: PRV | E181: 6 | F181: 6b | G181: 19.2. | H181: 0.00 | I181: 0.00 | J181: 0.00 | K181: xxx | L181: xxx | M181: 0.00 | N181: 0.00
C182: 3.2.2. Regionální produkce | D182: PRV | E182: 6 | F182: 6b | G182: 19.2. | H182: 0.00 | I182: 0.00 | J182: 0.00 | K182: xxx | L182: xxx | M182: 0.00 | N182: 0.00
B183: O 3.3. | C183: 3.3.1. Krajina krásnější | D183: PRV | E183: 6 | F183: 6b | G183: 19.2. | H183: 0.00 | I183: 0.00 | J183: 0.00 | K183: xxx | L183: xxx | M183: 0.00 | N183: 0.00
C184: 3.3.2. Rozvoj nezemědělské činnosti | D184: PRV | E184: 6 | F184: 6b | G184: 19.2. | H184: 0.00 | I184: 0.00 | J184: 0.00 | K184: xxx | L184: xxx | M184: 0.00 | N184: 0.00
C185: 3.3.3. Lesnická infrastruktura | D185: PRV | E185: 6 | F185: 6b | G185: 19.2. | H185: 0.00 | I185: 0.00 | J185: 0.00 | K185: xxx | L185: xxx | M185: 0.00 | N185: 0.00
C186: 3.3.4. Lesnická technika | D186: PRV | E186: 6 | F186: 6b | G186: 19.2. | H186: 0.00 | I186: 0.00 | J186: 0.00 | K186: xxx | L186: xxx | M186: 0.00 | N186: 0.00
B187: O 3.4. | C187: 3.4.1. Rozvoj sociálního podnikání | D187: IROP | E187: 4 | F187: 9d | G187: 4.1. | H187: 0.00 | I187: 0.00 | J187: 0.00 | K187: 0.00 | L187: 0.00 | M187: xxx | N187: 0.00
C188: 3.4.2. Vzděláváním k zaměstnanosti | D188: OP ZAM | E188: 2 | F188: 3 | G188: 2.3. | H188: 0.00 | I188: 0.00 | J188: 0.00 | K188: 0.00 | L188: 0.00 | M188: xxx | N188: 0.00
C189: 3.4.3. Sociální podnikání | D189: OP ZAM | E189: 2 | F189: 3 | G189: 2.3. | H189: 977,920.00 | I189: 831,232.00 | J189: 0.00 | K189: 146,688.00 | L189: 0.00 | M189: xxx | N189: 0.00
C190: 3.4.4. Kvalita a dostupnost sociálních služeb | D190: IROP | E190: 4 | F190: 9d | G190: 4.1. | H190: 0.00 | I190: 0.00 | J190: 0.00 | K190: =H190-I190 -> 0.00 | L190: 0.00 | M190: xxx | N190: 0.00
C191: 3.4.5. Prorodinná opatření | D191: OP ZAM | E191: 2 | F191: 3 | G191: 2.3. | H191: 666,670.00 | I191: 566,669.50 | J191: 100,000.50 | K191: 0.00 | L191: 0.00 | M191: xxx | N191: 0.00
A192: SC 4 | B192: O 4.1. | C192: 4.1.1. Školy dostupné všem | D192: IROP | E192: 4 | F192: 9d | G192: 4.1. | H192: 0.00 | I192: 0.00 | J192: 0.00 | K192: =H192-I192 -> 0.00 | L192: 0.00 | M192: xxx | N192: 0.00
A194: Rok 2023
A195: Specifický cíl SCLLD | B195: Opatření SCLLD | C195: Podopatření SCLLD | D195: Identifikace programu | H195: Plán financování | N195: Nezpůsobilé výdaje (v tis. Kč)
D196: Program | E196: Prioritní osa / Priorita Unie | F196: Investiční priorita OP / Prioritní oblast | G196: Specifický cíl OP / Operace PRV | H196: Celkové způsobilé výdaje (CZV) | I196: z toho podpora | K196: z toho vlastní zdroje příjemců
I197: Příspěvek Unie (a) | J197: Národní veřejné zdroje (SR, SF) (b) | K197: Národní veřejné zdroje (kraj, obce, jiné) ( c ) | L197: Národní soukromé zdroje (d) | M197: Soukromé zdroje PRV
A198: SC1 | B198: O 1.1. | C198: 1.1.1. Ochrana regionu | D198: IROP | E198: 4 | F198: 9d | G198: 4.1. | H198: 0.00 | I198: 0.00 | J198: 0.00 | K198: =H198-I198 -> 0.00 | L198: 0.00 | M198: xxx | N198: 0.00
C199: 1.1.2. Krajina je naše zrcadlo | D199: OP ŽP | E199: 4 | F199: 1 | G199: 4.3. | H199: 4,874,019.38 | I199: 4,142,916.47 | J199: 0.00 | K199: 487,401.94 | L199: 243,700.97 | M199: xxx | N199: 0.00
A200: SC 2 | B200: O 2.3. | C200: 2.3.1. Rekreační lesy | D200: PRV | E200: 6 | F200: 6b | G200: 19.2. | H200: 0.00 | I200: 0.00 | J200: xxx | K200: xxx | L200: xxx | M200: 0.00 | N200: 0.00
A201: SC 3 | B201: O 3.1. | C201: 3.1.1.Podpora a rozvoj občanské vybavenosti | D201: PRV | E201: 6 | F201: 6b | G201: 19.3. | H201: 0.00 | I201: 0.00 | J201: xxx | K201: xxx | L201: xxx | M201: 0.00 | N201: 0.00
C202: 3.1.6. Základní služby a obnova vesnic ve venkovských oblastech | D202: PRV | E202: 6 | F202: 6b | G202: 19.2. | H202: 0.00 | I202: 0.00 | J202: 0.00 | K202: xxx | L202: xxx | M202: 0.00 | N202: 0.00
C203: 3.1.4. Sociální služby | D203: OP ZAM | E203: 2 | F203: 3 | G203: 2.3. | H203: 0.00 | I203: 0.00 | J203: 0.00 | K203: 0.00 | L203: 0.00 | M203: xxx | N203: 0.00
C204: 3.1.5. Bezpečná a dostupná doprava | D204: IROP | E204: 4 | F204: 9d | G204: 4.1. | H204: 0.00 | I204: 0.00 | J204: 0.00 | K204: =H204-I204 -> 0.00 | L204: 0.00 | M204: xxx | N204: 0.00
B205: O3.2. | C205: 3.2.1. Podpora místních trhů | D205: PRV | E205: 6 | F205: 6b | G205: 19.2. | H205: 0.00 | I205: 0.00 | J205: xxx | K205: xxx | L205: xxx | M205: 0.00 | N205: 0.00
C206: 3.2.2. Regionální produkce | D206: PRV | E206: 6 | F206: 6b | G206: 19.2. | H206: 0.00 | I206: 0.00 | J206: xxx | K206: xxx | L206: xxx | M206: 0.00 | N206: 0.00
B207: O 3.3. | C207: 3.3.1. Krajina krásnější | D207: PRV | E207: 6 | F207: 6b | G207: 19.2. | H207: 0.00 | I207: 0.00 | J207: xxx | K207: xxx | L207: xxx | M207: 0.00 | N207: 0.00
C208: 3.3.2. Rozvoj nezemědělské činnosti | D208: PRV | E208: 6 | F208: 6b | G208: 19.2. | H208: 0.00 | I208: 0.00 | J208: xxx | K208: xxx | L208: xxx | M208: 0.00 | N208: 0.00
C209: 3.3.3. Lesnická infrastruktura | D209: PRV | E209: 6 | F209: 6b | G209: 19.2. | H209: 0.00 | I209: 0.00 | J209: xxx | K209: xxx | L209: xxx | M209: 0.00 | N209: 0.00
... 7 more rows

Sheet F - financování dle OP
A2: Celkově 2016 - 2020
A3: Programový rámec | E3: Plán financování | K3: Nezpůsobilé výdaje (v tis. Kč)
B4: Prioritní osa OP / Priorita Unie | C4: Investiční priorita OP / Prioritní oblast | D4: Specifický cíl OP / Operace PRV | E4: Celkové způsobilé výdaje (CZV) | H4: z toho vlastní zdroje příjemců
F5: Příspěvek Unie (a) | G5: Národní veřejné zdroje (SR, SF) (b) | H5: Národní veřejné zdroje (kraj, obce, jiné) ( c) | I5: Národní soukromé zdroje (d) | J5: Soukromé zdroje PRV
A6: PRV | B6: 6 | C6: 6b | D6: 19.2. | E6: =E28+E48+E68+E88+E108+E128+E148+E168 -> 12,959,543.00 | F6: =F28+F48+F68+F88+F108+F128+F148+F168 -> 4,363,255.00 | G6: =G28+G48+G68+G88+G108+G128+G148+G168 -> 2,454,334.00 | J6: =J28+J48+J68+J88+J108+J128+J148+J168 -> 6,141,954.00 | K6: 0.00 | L6: =F6+G6 -> 6,817,589.00 | M6: Krajina krásnější
B7: 6 | C7: 6b | D7: 19.2. | E7: =E29+E49+E69+E89+E109+E129+E149+E169 -> 1,994,399.00 | F7: =F29+F49+F69+F89+F109+F129+F149+F169 -> 638,207.00 | G7: 358,992.00 | J7: =J29+J49+J69+J89+J109+J129+J149+J169 -> 997,200.00 | K7: 0.00 | L7: =F7+G7 -> 997,199.00 | M7: Regionální produkce
B8: 6 | C8: 6b | D8: 19.2. | E8: 0.00 | F8: 0.00 | G8: 0.00 | J8: 0.00 | K8: 0.00 | L8: 0.00 | M8: Lesnická infrastruktura
B9: 6 | C9: 6b | D9: 19.2. | E9: 4,071,392.00 | F9: =F31+F51+F71+F91+F111+F131+F151+F171 -> 907,567.00 | G9: 510,507.00 | J9: 2,653,318.00 | K9: 0.00 | L9: =F9+G9 -> 1,418,074.00 | M9: Rozvoj nezemědělské činnosti
B10: 6 | C10: 6b | D10: 19.2. | E10: =E32+E52+E72+E92+E112+E132+E152+E172 -> 2,924,582.00 | F10: =F32+F52+F72+F92+F112+F132+F152+F172 -> 1,871,731.00 | G10: 1,052,851.00 | J10: 0.00 | K10: 0.00 | L10: 2,924,582.00 | M10: Rekreační lesy
B11: 6 | C11: 6b | D11: 19.2. | E11: 0.00 | F11: 0.00 | G11: 0.00 | J11: 0.00 | K11: 0.00 | L11: 0.00 | M11: Lesnická technika
B12: 6 | C12: 6b | D12: 19.2. | E12: =E34+E54+E74+E94+E114+E134+E154+E174 -> 0.00 | F12: 0.00 | G12: 0.00 | J12: =J34+J54+J74+J94+J114+J134+J154+J174 -> 0.00 | K12: 0.00 | L12: 0.00 | M12: Podpora místních trhů
B13: 6 | C13: 6b | D13: 19.2. | E13: 20,310,245.00 | F13: 10,398,846.00 | G13: 5,849,350.00 | J13: =J35+J55+J75+J95+J115+J135+J155+J175 -> 4,062,049.00 | K13: 0.00 | L13: =F13+G13 -> 16,248,196.00 | M13: Článek 20
B14: 6 | C14: 6b | D14: 19.3. | E14: 1,506,008.00 | F14: 867,386.00 | G14: =G36+G56+G76+G96+G116+G136+G156+G176 -> 487,904.00 | J14: =J36+J56+J76+J96+J116+J136+J156+J176 -> 150,718.00 | K14: =K36+K56+K76+K96+K116+K136+K156+K176 -> 0.00 | L14: =F14+G14 -> 1,355,290.00
F15: =SUM(F6:F14) -> 19,046,992.00 | G15: =SUM(G6:G14) -> 10,713,938.00 | L15: =F15+G15 -> 29,760,930.00 | M15: 29,760,930.00 | N15: =L15-M15 -> 0.00
A16: PR IROP | B16: 4 | C16: 9d | D16: 4.1. | E16: 59,234,638.64 | F16: 56,272,905.94 | G16: 0.00 | H16: 2,525,337.57 | I16: 436,395.13 | K16: 0.00 | L16: =E37+E57+E77+E97+E117+E137+E157+E177 -> 59,234,638.64 | M16: =F37+F57+F77+F97+F117+F137+F157+F177 -> 56,272,905.94 | N16: =G37+G57+G77+G97+G117+G137+G157+G177 -> 0.00 | O16: =H37+H57+H77+H97+H117+H137+H157+H177 -> 2,525,337.57 | P16: 436,395.13
A17: PR ŽP | B17: 4 | C17: 1 | D17: 4.3. | E17: 15,101,400.00 | F17: 12,836,190.00 | G17: 0.00 | H17: 1,534,107.09 | I17: 731,102.91 | K17: 0.00 | L17: =E38+E58+E78+E98+E118+E138+E158+E178 -> 15,101,400.00 | M17: =F38+F58+F78+F98+F118+F138+F158+F178 -> 12,836,190.00 | N17: 0.00 | O17: =H38+H58+H78+H98+H118+H138+H158+H178 -> 1,534,107.09 | P17: 731,102.91
F18: =F17 -> 12,836,190.00 | G18: =G17 -> 0.00
A19: PR ZAM | B19: 2 | C19: 3 | D19: 2.3. | E19: 3,259,750.00 | F19: 2,770,787.50 | G19: 488,962.50 | H19: 0.00 | I19: 0.00 | K19: 0.00
B20: 2 | C20: 3 | D20: 2.3. | E20: 2,585,100.00 | F20: 2,197,335.00 | G20: 387,765.00 | H20: 0.00 | I20: 0.00 | K20: 0.00
B21: 2 | C21: 3 | D21: 2.3. | E21: 3,911,700.00 | F21: 3,324,945.00 | G21: 0.00 | H21: 586,755.00 | I21: 0.00 | K21: 0.00
B22: 2 | C22: 3 | D22: 2.3. | E22: 4,755,330.00 | F22: 4,042,030.50 | G22: 713,299.50 | H22: 0.00 | I22: 0.00 | K22: 0.00
E23: =SUM(E19:E22) -> 14,511,880.00 | F23: =SUM(F19:F22) -> 12,335,098.00 | G23: =SUM(G19:G22) -> 1,590,027.00 | H23: =SUM(H19:H22) -> 586,755.00 | I23: =SUM(I19:I22) -> 0.00 | J23: 0.00
A24: Rok 2016
A25: Programový rámec | E25: Plán financování | K25: Nezpůsobilé výdaje (v tis. Kč)
B26: Prioritní osa OP / Priorita Unie | C26: Investiční priorita OP / Prioritní oblast | D26: Specifický cíl OP / Operace PRV | E26: Celkové způsobilé výdaje (CZV) | H26: z toho vlastní zdroje příjemců
F27: Příspěvek Unie (a) | G27: Národní veřejné zdroje (SR, SF) (b) | H27: Národní veřejné zdroje (kraj, obce, jiné) ( c) | I27: Národní soukromé zdroje (d) | J27: Soukromé zdroje PRV
A28: PRV | B28: 6 | C28: 6b | D28: 19.2. | E28: 0.00 | F28: 0.00 | G28: 0.00 | J28: 0.00 | K28: 0.00
B29: 6 | C29: 6b | D29: 19.2. | E29: 0.00 | F29: 0.00 | G29: 0.00 | J29: 0.00 | K29: 0.00
B30: 6 | C30: 6b | D30: 19.2. | E30: 0.00 | F30: 0.00 | G30: 0.00 | J30: 0.00 | K30: 0.00
B31: 6 | C31: 6b | D31: 19.2. | E31: 0.00 | F31: 0.00 | G31: 0.00 | J31: 0.00 | K31: 0.00
B32: 6 | C32: 6b | D32: 19.2. | E32: 0.00 | F32: 0.00 | G32: 0.00 | J32: 0.00 | K32: 0.00
B33: 6 | C33: 6b | D33: 19.2. | E33: 0.00 | F33: 0.00 | G33: 0.00 | J33: 0.00 | K33: 0.00
B34: 6 | C34: 6b | D34: 19.2. | E34: 0.00 | F34: 0.00 | G34: 0.00 | J34: 0.00 | K34: 0.00
B35: 6 | C35: 6b | D35: 19.2. | E35: 0.00 | F35: 0.00 | G35: 0.00 | J35: 0.00 | K35: 0.00
B36: 6 | C36: 6b | D36: 19.3. | E36: =F36+G36+H36 -> 0.00 | F36: 0.00 | G36: 0.00 | J36: 0.00 | K36: 0.00
A37: PR IROP | B37: 4 | C37: 9d | D37: 4.1. | E37: 0.00 | F37: 0.00 | G37: 0.00 | H37: 0.00 | I37: 0.00 | K37: 0.00
A38: PR ŽP | B38: 4 | C38: 1 | D38: 4.3. | E38: 0.00 | F38: 0.00 | G38: 0.00 | H38: 0.00 | I38: 0.00 | K38: 0.00
A39: PR ZAM | B39: 2 | C39: 3 | D39: 2.3. | E39: 0.00 | F39: 0.00 | G39: 0.00 | H39: 0.00 | I39: 0.00 | K39: 0.00
B40: 2 | C40: 3 | D40: 2.3. | E40: 0.00 | F40: 0.00 | G40: 0.00 | H40: 0.00 | I40: 0.00 | K40: 0.00
B41: 2 | C41: 3 | D41: 2.3. | E41: 0.00 | F41: 0.00 | G41: 0.00 | H41: 0.00 | I41: 0.00 | K41: 0.00
B42: 2 | C42: 3 | D42: 2.3. | E42: 0.00 | F42: 0.00 | G42: 0.00 | H42: 0.00 | I42: 0.00 | K42: 0.00
A44: Rok 2017
A45: Programový rámec | E45: Plán financování | K45: Nezpůsobilé výdaje (v tis. Kč)
B46: Prioritní osa OP / Priorita Unie | C46: Investiční priorita OP / Prioritní oblast | D46: Specifický cíl OP / Operace PRV | E46: Celkové způsobilé výdaje (CZV) | H46: z toho vlastní zdroje příjemců
F47: Příspěvek Unie (a) | G47: Národní veřejné zdroje (SR, SF) (b) | H47: Národní veřejné zdroje (kraj, obce, jiné) ( c) | I47: Národní soukromé zdroje (d) | J47: Soukromé zdroje PRV
A48: PRV | B48: 6 | C48: 6b | D48: 19.2. | E48: 0.00 | F48: 0.00 | G48: 0.00 | J48: 0.00 | K48: 0.00
B49: 6 | C49: 6b | D49: 19.2. | E49: 0.00 | F49: 0.00 | G49: 0.00 | J49: 0.00 | K49: 0.00
B50: 6 | C50: 6b | D50: 19.2. | E50: 0.00 | F50: 0.00 | G50: 0.00 | J50: 0.00 | K50: 0.00
B51: 6 | C51: 6b | D51: 19.2. | E51: 0.00 | F51: 0.00 | G51: 0.00 | J51: 0.00 | K51: 0.00
B52: 6 | C52: 6b | D52: 19.2. | E52: 0.00 | F52: 0.00 | G52: 0.00 | J52: 0.00 | K52: 0.00
B53: 6 | C53: 6b | D53: 19.2. | E53: 0.00 | F53: 0.00 | G53: 0.00 | J53: 0.00 | K53: 0.00
B54: 6 | C54: 6b | D54: 19.2. | E54: 0.00 | F54: 0.00 | G54: 0.00 | J54: 0.00 | K54: 0.00
B55: 6 | C55: 6b | D55: 19.2. | E55: 0.00 | F55: 0.00 | G55: 0.00 | J55: 0.00 | K55: 0.00
B56: 6 | C56: 6b | D56: 19.3. | E56: 0.00 | F56: 0.00 | G56: 0.00 | J56: 0.00 | K56: 0.00
A57: PR IROP | B57: 4 | C57: 9d | D57: 4.1. | E57: 0.00 | F57: 0.00 | G57: 0.00 | H57: 0.00 | I57: 0.00 | K57: 0.00
A58: PR ŽP | B58: 4 | C58: 1 | D58: 4.3. | E58: 0.00 | F58: 0.00 | G58: 0.00 | H58: 0.00 | I58: 0.00 | K58: 0.00
A59: PR ZAM | B59: 2 | C59: 3 | D59: 2.3. | E59: 0.00 | F59: =E59/100*85 -> 0.00 | G59: =E59/100*10 -> 0.00 | H59: =E59/100*2.5 -> 0.00 | I59: 0.00 | K59: 0.00
B60: 2 | C60: 3 | D60: 2.3. | E60: 0.00 | F60: =E60/100*85 -> 0.00 | G60: =E60/100*11.5 -> 0.00 | H60: =E60/100*2.31 -> 0.00 | I60: 0.00 | K60: 0.00
B61: 2 | C61: 3 | D61: 2.3. | E61: 0.00 | F61: 0.00 | G61: =E61/100*0 -> 0.00 | H61: =E61/100*0 -> 0.00 | I61: 0.00 | K61: 0.00
B62: 2 | C62: 3 | D62: 2.3. | E62: 0.00 | F62: =E62/100*85 -> 0.00 | G62: =E62/100*0 -> 0.00 | H62: =E62/100*0 -> 0.00 | I62: 0.00 | K62: 0.00
A64: Rok 2018
A65: Programový rámec | E65: Plán financování | K65: Nezpůsobilé výdaje (v tis. Kč)
B66: Prioritní osa OP / Priorita Unie | C66: Investiční priorita OP / Prioritní oblast | D66: Specifický cíl OP / Operace PRV | E66: Celkové způsobilé výdaje (CZV) | H66: z toho vlastní zdroje příjemců
F67: Příspěvek Unie (a) | G67: Národní veřejné zdroje (SR, SF) (b) | H67: Národní veřejné zdroje (kraj, obce, jiné) ( c) | I67: Národní soukromé zdroje (d) | J67: Soukromé zdroje PRV
A68: PRV | B68: 6 | C68: 6b | D68: 19.2. | E68: 3,747,883.00 | F68: 1,315,602.00 | G68: 740,027.00 | J68: =E68-F68-G68 -> 1,692,254.00 | K68: 0.00 | L68: =F68+G68 -> 2,055,629.00 | M68: Krajina krásnější
B69: 6 | C69: 6b | D69: 19.2. | E69: 0.00 | F69: 0.00 | G69: 0.00 | J69: =E69-F69-G69 -> 0.00 | K69: 0.00 | L69: =F69+G69 -> 0.00 | M69: Regionální produkce
B70: 6 | C70: 6b | D70: 19.2. | E70: 0.00 | F70: 0.00 | G70: 0.00 | J70: =E70-F70-G70 -> 0.00 | K70: 0.00 | L70: 0.00 | M70: Lesnická infrastruktura
B71: 6 | C71: 6b | D71: 19.2. | E71: 906,000.00 | F71: 260,928.00 | G71: 146,772.00 | J71: =E71-F71-G71 -> 498,300.00 | K71: 0.00 | L71: 407,700.00 | M71: Rozvoj nezemědělské činnosti
B72: 6 | C72: 6b | D72: 19.2. | E72: 999,969.00 | F72: 639,980.00 | G72: 359,989.00 | J72: 0.00 | K72: 0.00 | L72: 999,969.00 | M72: Rekreační lesy
B73: 6 | C73: 6b | D73: 19.2. | E73: 0.00 | F73: 0.00 | G73: 0.00 | J73: 0.00 | K73: 0.00 | L73: 0.00 | M73: Lesnická technika
B74: 6 | C74: 6b | D74: 19.2. | E74: 0.00 | F74: 0.00 | G74: 0.00 | J74: 0.00 | K74: 0.00 | L74: 0.00 | M74: Podpora místních trhů
B75: 6 | C75: 6b | D75: 19.2. | E75: 0.00 | F75: 0.00 | G75: 0.00 | J75: 0.00 | K75: 0.00 | L75: 0.00 | M75: Článek 20
B76: 6 | C76: 6b | D76: 19.3. | E76: 755,130.00 | F76: 434,880.00 | G76: 244,620.00 | J76: 75,630.00 | K76: 0.00 | L76: 679,500.00
A77: PR IROP | B77: 4 | C77: 9d | D77: 4.1. | E77: 999,867.00 | F77: 949,873.65 | G77: 0.00 | H77: 49,993.35 | I77: 0.00 | K77: 0.00
A78: PR ŽP | B78: 4 | C78: 1 | D78: 4.3. | E78: 0.00 | F78: 0.00 | G78: 0.00 | H78: 0.00 | I78: 0.00 | K78: 0.00
A79: PR ZAM | B79: 2 | C79: 3 | D79: 2.3. | E79: 0.00 | F79: =E79/100*85 -> 0.00 | G79: =E79/100*15 -> 0.00 | H79: 0.00 | I79: 0.00 | K79: 0.00
B80: 2 | C80: 3 | D80: 2.3. | E80: 0.00 | F80: =E80/100*85 -> 0.00 | G80: =E80/100*15 -> 0.00 | H80: 0.00 | I80: 0.00 | K80: 0.00
B81: 2 | C81: 3 | D81: 2.3. | E81: 0.00 | F81: =E81/100*85 -> 0.00 | G81: 0.00 | H81: 0.00 | I81: 0.00 | K81: 0.00
B82: 2 | C82: 3 | D82: 2.3. | E82: 741,210.00 | F82: 630,028.50 | G82: 111,181.50 | H82: 0.00 | I82: 0.00 | K82: 0.00
A84: Rok 2019
A85: Programový rámec | E85: Plán financování | K85: Nezpůsobilé výdaje (v tis. Kč)
B86: Prioritní osa OP / Priorita Unie | C86: Investiční priorita OP / Prioritní oblast | D86: Specifický cíl OP / Operace PRV | E86: Celkové způsobilé výdaje (CZV) | H86: z toho vlastní zdroje příjemců
F87: Příspěvek Unie (a) | G87: Národní veřejné zdroje (SR, SF) (b) | H87: Národní veřejné zdroje (kraj, obce, jiné) ( c) | I87: Národní soukromé zdroje (d) | J87: Soukromé zdroje PRV
A88: PRV | B88: 6 | C88: 6b | D88: 19.2. | E88: =F88+G88+J88 -> 7,993,866.00 | F88: 2,658,087.00 | G88: 1,495,176.00 | J88: 3,840,603.00 | K88: 0.00 | L88: =F88+G88 -> 4,153,263.00 | M88: Krajina krásnější
B89: 6 | C89: 6b | D89: 19.2. | E89: 0.00 | F89: 0.00 | G89: 0.00 | J89: =E89-F89-G89 -> 0.00 | K89: 0.00 | L89: 0.00 | M89: Regionální produkce
B90: 6 | C90: 6b | D90: 19.2. | E90: 0.00 | F90: 0.00 | G90: 0.00 | J90: 0.00 | K90: 0.00 | L90: 0.00 | M90: Lesnická infrastruktura
B91: 6 | C91: 6b | D91: 19.2. | E91: 0.00 | F91: 0.00 | G91: 0.00 | J91: 0.00 | K91: 0.00 | L91: =F91+G91 -> 0.00 | M91: Rozvoj nezemědělské činnosti
B92: 6 | C92: 6b | D92: 19.2. | E92: 1,924,613.00 | F92: 1,231,751.00 | G92: 692,862.00 | J92: 0.00 | K92: 0.00 | L92: =F92+G92 -> 1,924,613.00 | M92: Rekreační lesy
B93: 6 | C93: 6b | D93: 19.2. | E93: 0.00 | F93: 0.00 | G93: 0.00 | J93: =E93-F93-G93 -> 0.00 | K93: 0.00 | M93: Lesnická technika
B94: 6 | C94: 6b | D94: 19.2. | E94: 0.00 | F94: 0.00 | G94: 0.00 | J94: 0.00 | K94: 0.00 | M94: Podpora místních trhů
B95: 6 | C95: 6b | D95: 19.2. | E95: 0.00 | F95: 0.00 | G95: 0.00 | J95: 0.00 | K95: 0.00 | M95: Článek 20
B96: 6 | C96: 6b | D96: 19.3. | E96: 0.00 | F96: 0.00 | G96: 0.00 | J96: 0.00 | K96: 0.00
A97: PR IROP | B97: 4 | C97: 9d | D97: 4.1. | E97: 7,294,813.39 | F97: 6,930,072.72 | G97: 0.00 | H97: 286,000.00 | I97: 78,740.67 | K97: 0.00
A98: PR ŽP | B98: 4 | C98: 1 | D98: 4.3. | E98: 0.00 | F98: 0.00 | G98: 0.00 | H98: 0.00 | I98: 0.00 | K98: 0.00
A99: PR ZAM | B99: 2 | C99: 3 | D99: 2.3. | E99: 0.00 | F99: =E99/100*85 -> 0.00 | G99: =E99/100*15 -> 0.00 | H99: 0.00 | I99: 0.00 | K99: 0.00
B100: 2 | C100: 3 | D100: 2.3. | E100: 430,850.00 | F100: 366,222.50 | G100: 64,627.50 | H100: 0.00 | I100: 0.00 | K100: 0.00
B101: 2 | C101: 3 | D101: 2.3. | E101: 0.00 | F101: 0.00 | G101: 0.00 | H101: 0.00 | I101: 0.00 | K101: 0.00
B102: 2 | C102: 3 | D102: 2.3. | E102: 1,191,700.00 | F102: 1,012,945.00 | G102: 178,755.00 | H102: 0.00 | I102: 0.00 | K102: 0.00
A104: Rok 2020
A105: Programový rámec | E105: Plán financování | K105: Nezpůsobilé výdaje (v tis. Kč)
B106: Prioritní osa OP / Priorita Unie | C106: Investiční priorita OP / Prioritní oblast | D106: Specifický cíl OP / Operace PRV | E106: Celkové způsobilé výdaje (CZV) | H106: z toho vlastní zdroje příjemců
F107: Příspěvek Unie (a) | G107: Národní veřejné zdroje (SR, SF) (b) | H107: Národní veřejné zdroje (kraj, obce, jiné) ( c) | I107: Národní soukromé zdroje (d) | J107: Soukromé zdroje PRV
A108: PRV | B108: 6 | C108: 6b | D108: 19.2. | E108: 1,217,794.00 | F108: 389,566.00 | G108: 219,131.00 | J108: =E108-F108-G108 -> 609,097.00 | K108: 0.00 | L108: =F108+G108 -> 608,697.00 | M108: Krajina krásnější
B109: 6 | C109: 6b | D109: 19.2. | E109: 1,994,399.00 | F109: 638,207.00 | G109: 358,992.00 | J109: 997,200.00 | K109: 0.00 | L109: 997,199.00 | M109: Regionální produkce
B110: 6 | C110: 6b | D110: 19.2. | E110: 0.00 | F110: 0.00 | G110: 0.00 | J110: 0.00 | K110: 0.00 | L110: 0.00 | M110: Lesnická infrastruktura
B111: 6 | C111: 6b | D111: 19.2. | E111: =F111+G111+J111 -> 3,165,392.00 | F111: 646,639.00 | G111: 363,735.00 | J111: 2,155,018.00 | K111: 0.00 | L111: 1,010,374.00 | M111: Rozvoj nezemědělské činnosti
B112: 6 | C112: 6b | D112: 19.2. | E112: 0.00 | F112: 0.00 | G112: 0.00 | J112: 0.00 | K112: 0.00 | L112: 0.00 | M112: Rekreační lesy
B113: 6 | C113: 6b | D113: 19.2. | E113: 0.00 | F113: 0.00 | G113: 0.00 | J113: 0.00 | K113: 0.00 | L113: 0.00 | M113: Lesnická technika
B114: 6 | C114: 6b | D114: 19.2. | E114: 0.00 | F114: 0.00 | G114: 0.00 | J114: 0.00 | K114: 0.00 | L114: 0.00 | M114: Podpora místních trhů
B115: 6 | C115: 6b | D115: 19.2. | E115: =F115+G115+J115 -> 20,310,245.00 | F115: 10,398,846.00 | G115: 5,849,350.00 | J115: 4,062,049.00 | K115: =K137+K157+K177+K197+K217+K237+K257+K277 -> 0.00 | L115: 16,248,196.00 | M115: Článek 20
B116: 6 | C116: 6b | D116: 19.3. | E116: 750,878.00 | F116: 432,506.00 | G116: 243,284.00 | J116: 75,088.00 | K116: 0.00 | L116: 675,790.00
A117: PR IROP | B117: 4 | C117: 9d | D117: 4.1. | E117: 33,126,281.94 | F117: 31,469,967.84 | G117: 0.00 | H117: 1,373,635.45 | I117: 282,678.65 | K117: 0.00
A118: PR ŽP | B118: 4 | C118: 1 | D118: 4.3. | E118: 479,341.88 | F118: 407,440.59 | G118: 0.00 | H118: 71,901.29 | I118: 0.00 | K118: 0.00
A119: PR ZAM | B119: 2 | C119: 3 | D119: 2.3. | E119: 1,119,010.00 | F119: 951,158.50 | G119: 167,851.50 | H119: 0.00 | I119: 0.00 | K119: 0.00
B120: 2 | C120: 3 | D120: 2.3. | E120: 861,700.00 | F120: 732,445.00 | G120: 129,255.00 | H120: 0.00 | I120: 0.00 | K120: 0.00
B121: 2 | C121: 3 | D121: 2.3. | E121: 977,930.00 | F121: 831,240.50 | G121: 0.00 | H121: 0.00 | I121: 146,689.50 | K121: 0.00
B122: 2 | C122: 3 | D122: 2.3. | E122: 1,151,600.00 | F122: 978,860.00 | G122: 172,740.00 | H122: 0.00 | I122: 0.00 | K122: 0.00
A124: Rok 2021
A125: Programový rámec | E125: Plán financování | K125: Nezpůsobilé výdaje (v tis. Kč)
B126: Prioritní osa OP / Priorita Unie | C126: Investiční priorita OP / Prioritní oblast | D126: Specifický cíl OP / Operace PRV | E126: Celkové způsobilé výdaje (CZV) | H126: z toho vlastní zdroje příjemců
F127: Příspěvek Unie (a) | G127: Národní veřejné zdroje (SR, SF) (b) | H127: Národní veřejné zdroje (kraj, obce, jiné) ( c) | I127: Národní soukromé zdroje (d) | J127: Soukromé zdroje PRV
A128: PRV | B128: 6 | C128: 6b | D128: 19.2. | E128: 0.00 | F128: 0.00 | G128: 0.00 | J128: 0.00 | K128: 0.00
B129: 6 | C129: 6b | D129: 19.2. | E129: 0.00 | F129: 0.00 | G129: 0.00 | J129: 0.00 | K129: 0.00
B130: 6 | C130: 6b | D130: 19.2. | E130: 0.00 | F130: 0.00 | G130: 0.00 | J130: 0.00 | K130: 0.00
B131: 6 | C131: 6b | D131: 19.2. | E131: 0.00 | F131: 0.00 | G131: 0.00 | J131: 0.00 | K131: 0.00
B132: 6 | C132: 6b | D132: 19.2. | E132: 0.00 | F132: 0.00 | G132: 0.00 | J132: 0.00 | K132: 0.00
B133: 6 | C133: 6b | D133: 19.2. | E133: 0.00 | F133: 0.00 | G133: 0.00 | J133: 0.00 | K133: 0.00
B134: 6 | C134: 6b | D134: 19.2. | E134: 0.00 | F134: 0.00 | G134: 0.00 | J134: 0.00 | K134: 0.00
B135: 6 | C135: 6b | D135: 19.2. | E135: 0.00 | F135: 0.00 | G135: 0.00 | J135: 0.00 | K135: 0.00
B136: 6 | C136: 6b | D136: 19.3. | E136: 0.00 | F136: 0.00 | G136: 0.00 | J136: 0.00 | K136: 0.00
A137: PR IROP | B137: 4 | C137: 9d | D137: 4.1. | E137: 17,813,676.31 | F137: 16,922,991.73 | G137: 0.00 | H137: 815,708.77 | I137: 74,975.81 | K137: 0.00
A138: PR ŽP | B138: 4 | C138: 1 | D138: 4.3. | E138: 4,874,019.37 | F138: 4,142,916.47 | G138: 0.00 | H138: 487,401.93 | I138: 243,700.97 | K138: 0.00
A139: PR ZAM | B139: 2 | C139: 3 | D139: 2.3. | E139: 1,119,010.00 | F139: 951,158.50 | G139: 167,851.50 | H139: 0.00 | I139: 0.00 | K139: 0.00
B140: 2 | C140: 3 | D140: 2.3. | E140: 1,292,550.00 | F140: 1,098,667.50 | G140: 193,882.50 | H140: 0.00 | I140: 0.00 | K140: 0.00
B141: 2 | C141: 3 | D141: 2.3. | E141: 1,955,850.00 | F141: 166,247,250.00 | G141: 0.00 | H141: 293,377.50 | I141: 0.00 | K141: 0.00
B142: 2 | C142: 3 | D142: 2.3. | E142: 1,004,150.00 | F142: 853,527.50 | G142: 150,622.50 | H142: 0.00 | I142: 0.00 | K142: 0.00
A144: Rok 2022
A145: Programový rámec | E145: Plán financování | K145: Nezpůsobilé výdaje (v tis. Kč)
B146: Prioritní osa OP / Priorita Unie | C146: Investiční priorita OP / Prioritní oblast | D146: Specifický cíl OP / Operace PRV | E146: Celkové způsobilé výdaje (CZV) | H146: z toho vlastní zdroje příjemců
F147: Příspěvek Unie (a) | G147: Národní veřejné zdroje (SR, SF) (b) | H147: Národní veřejné zdroje (kraj, obce, jiné) ( c) | I147: Národní soukromé zdroje (d) | J147: Soukromé zdroje PRV
A148: PRV | B148: 6 | C148: 6b | D148: 19.2. | E148: 0.00 | F148: 0.00 | G148: 0.00 | J148: 0.00 | K148: 0.00
B149: 6 | C149: 6b | D149: 19.2. | E149: 0.00 | F149: 0.00 | G149: 0.00 | J149: 0.00 | K149: 0.00
B150: 6 | C150: 6b | D150: 19.2. | E150: 0.00 | F150: 0.00 | G150: 0.00 | J150: 0.00 | K150: 0.00
B151: 6 | C151: 6b | D151: 19.2. | E151: 0.00 | F151: 0.00 | G151: 0.00 | J151: 0.00 | K151: 0.00
B152: 6 | C152: 6b | D152: 19.2. | E152: 0.00 | F152: 0.00 | G152: 0.00 | J152: 0.00 | K152: 0.00
B153: 6 | C153: 6b | D153: 19.2. | E153: 0.00 | F153: 0.00 | G153: 0.00 | J153: 0.00 | K153: 0.00
B154: 6 | C154: 6b | D154: 19.2. | E154: 0.00 | F154: 0.00 | G154: 0.00 | J154: 0.00 | K154: 0.00
B155: 6 | C155: 6b | D155: 19.2. | E155: 0.00 | F155: 0.00 | G155: 0.00 | J155: 0.00 | K155: 0.00
B156: 6 | C156: 6b | D156: 19.3. | E156: 0.00 | F156: 0.00 | G156: 0.00 | J156: 0.00 | K156: 0.00
A157: PR IROP | B157: 4 | C157: 9d | D157: 4.1. | E157: 0.00 | F157: 0.00 | G157: 0.00 | H157: 0.00 | I157: 0.00 | K157: 0.00
A158: PR ŽP | B158: 4 | C158: 1 | D158: 4.3. | E158: 4,874,019.37 | F158: 4,142,916.47 | G158: 0.00 | H158: 487,401.93 | I158: 243,700.97 | K158: 0.00
A159: PR ZAM | B159: 2 | C159: 3 | D159: 2.3. | E159: 1,021,730.00 | F159: 868,470.50 | G159: 153,259.50 | H159: 0.00 | I159: 0.00 | K159: 0.00
B160: 2 | C160: 3 | D160: 2.3. | E160: 0.00 | F160: 0.00 | G160: 0.00 | H160: 0.00 | I160: 0.00 | K160: 0.00
B161: 2 | C161: 3 | D161: 2.3. | E161: 977,920.00 | F161: 831,232.00 | G161: 0.00 | H161: 146,688.00 | I161: 0.00 | K161: 0.00
B162: 2 | C162: 3 | D162: 2.3. | E162: 666,670.00 | F162: 566,669.50 | G162: 100,000.50 | H162: 0.00 | I162: 0.00 | K162: 0.00
A164: Rok 2023
A165: Programový rámec | E165: Plán financování | K165: Nezpůsobilé výdaje (v tis. Kč)
B166: Prioritní osa OP / Priorita Unie | C166: Investiční priorita OP / Prioritní oblast | D166: Specifický cíl OP / Operace PRV | E166: Celkové způsobilé výdaje (CZV) | H166: z toho vlastní zdroje příjemců
F167: Příspěvek Unie (a) | G167: Národní veřejné zdroje (SR, SF) (b) | H167: Národní veřejné zdroje (kraj, obce, jiné) ( c) | I167: Národní soukromé zdroje (d) | J167: Soukromé zdroje PRV
A168: PRV | B168: 6 | C168: 6b | D168: 19.2. | E168: 0.00 | F168: 0.00 | G168: 0.00 | J168: 0.00 | K168: 0.00
B169: 6 | C169: 6b | D169: 19.2. | E169: 0.00 | F169: 0.00 | G169: 0.00 | J169: 0.00 | K169: 0.00
B170: 6 | C170: 6b | D170: 19.2. | E170: 0.00 | F170: 0.00 | G170: 0.00 | J170: 0.00 | K170: 0.00
B171: 6 | C171: 6b | D171: 19.2. | E171: 0.00 | F171: 0.00 | G171: 0.00 | J171: 0.00 | K171: 0.00
B172: 6 | C172: 6b | D172: 19.2. | E172: 0.00 | F172: 0.00 | G172: 0.00 | J172: 0.00 | K172: 0.00
B173: 6 | C173: 6b | D173: 19.2. | E173: 0.00 | F173: 0.00 | G173: 0.00 | J173: 0.00 | K173: 0.00
B174: 6 | C174: 6b | D174: 19.2. | E174: 0.00 | F174: 0.00 | G174: 0.00 | J174: 0.00 | K174: 0.00
B175: 6 | C175: 6b | D175: 19.2. | E175: 0.00 | F175: 0.00 | G175: 0.00 | J175: 0.00 | K175: 0.00
B176: 6 | C176: 6b | D176: 19.3. | E176: 0.00 | F176: 0.00 | G176: 0.00 | J176: 0.00 | K176: 0.00
A177: PR IROP | B177: 4 | C177: 9d | D177: 4.1. | E177: 0.00 | F177: 0.00 | G177: 0.00 | H177: 0.00 | I177: 0.00 | K177: 0.00
A178: PR ŽP | B178: 4 | C178: 1 | D178: 4.3. | E178: 4,874,019.38 | F178: 4,142,916.47 | G178: 0.00 | H178: 487,401.94 | I178: 243,700.97 | K178: 0.00
A179: PR ZAM | B179: 2 | C179: 3 | D179: 2.3. | E179: 0.00 | F179: =E179/100*85 -> 0.00 | G179: =E179/100*15 -> 0.00 | H179: 0.00 | I179: 0.00 | K179: 0.00
B180: 2 | C180: 3 | D180: 2.3. | E180: 0.00 | F180: =E180/100*85 -> 0.00 | G180: =E180/100*15 -> 0.00 | H180: 0.00 | I180: 0.00 | K180: 0.00
B181: 2 | C181: 3 | D181: 2.3. | E181: 0.00 | F181: =E181/100*85 -> 0.00 | G181: 0.00 | H181: 0.00 | I181: 0.00 | K181: 0.00
B182: 2 | C182: 3 | D182: 2.3. | E182: 0.00 | F182: =E182/100*85 -> 0.00 | G182: =E182/100*15 -> 0.00 | H182: 0.00 | I182: 0.00 | K182: 0.00

Sheet G - Indikátory dle SC
A1: Specifický cíl SCLLD | B1: Opatření SCLLD | C1: IDENTIFIKACE programu | G1: Identifikace indikátorů | L1: Hodnoty indikátoru | P1: Odůvodnění jakým způsobem byly hodnoy stanoveny PŮVODNÍ ZMŃĚNÍ | Q1: Odůvodnění jakým způsobem byly hodnoy stanoveny AKTUALIZOVANÉ k 31.12.2019
C2: Program | D2: Prioritní osa / Priorita Unie | E2: Investiční priorita OP / Prioritní oblast | F2: Specifický cíl OP / operace PRV | G2: kód NČI2014+ | H2: Název indikátoru | I2: Měrná jednotka | J2: typ indikátoru (výstup/výsledek) | K2: Výchozí hodnota | L2: Datum výchozí hodnoty | M2: Cílová hodnota | N2: Datum cílové hodnoty | O2: Milník 31.12.2018 (je-li ŘO vyžadován)
A4: SC1 | B4: 1.1.1. Ochrana regionu | C4: IROP | D4: 4 | E4: 9d | F4: 4.1. | G4: 5 75 20 | H4: Počet exponovaných území s nedostat. připraveností složek IZS | I4: území | J4: výsledku | K4: 108 | L4: 2014-12-31 | M4: 48 | N4: 2023-12-31 | O4: xxx | P4: Hodnoty výsledkových indikátoru, a to jak výchozí tak cílová byla převzata z IROP. Výchozí hodnota je stanovena k 31.12.2014 a cílová k 31.12.2023. Hodnota mid-term nebyla nastavena. | Q4: xxx
G5: 5 75 01 | H5: Počet nových a modernizovaných objektů sloužících složkám IZS | I5: objekty | J5: výstupu | K5: 0 | L5: 2014-01-01 | M5: 2 | N5: 2023-12-31 | O5: 1 | P5: Cílová hodnota indikátoru byla stanovena ve výši 5 zrekonstruovaných objektů složek JPO II a JPO III. Tento požadavek vychází ze šetření v území a ze zásobníku projektů s ohledem na absorpční kapacitu, alokovanou částku a průměrné ce. Potřeba realizace indikátoru vychází ze socioekonomické analýzy, kap. 2.1.10. Bezpečnost, str. 62. Cílové hodnoty bude dosaženo, až v roce 2023, do roku 2018 se předpokládá, že bude realizována jedna rekonstrukce hasičské zbrojnice, která bude již proplacena. Cena byla stanovena na základě zjištění obvyklých cen realizovaných rekonstrukcí hasičských zbrojnic. Tato cena je individuální, dle každého realizovaného projektu a je zde stanovena, jako cena průměrná, dle požadavků jednotlivých projektových záměrů na 800 000,- Kč za jednu rekonstrukci objektu. V rámci indikátoru se plánují především následující zodolnění/ úpravy: rozšíření zbrojnice pro zásahovou techniku, výstavba garáží pro zásahovou techniku, úprava vjezdu pro zásahovou techniku, které budou v souladu s přílohou č. 5 Programového dokumentu IROP a dokumentu ?Zajištění adekvátní odolnosti a vybavenosti základních složek integrovaného záchranného systému ? Policie ČR a Hasičského záchranného sboru ČR (včetně JSDH) v území, s důrazem na přizpůsobení se změnám klimatu a nových rizikům v období 2014-2020? | Q5: K datu 14.11.2019 došlo u tohoto indikátoru k finalizaci cílové hodnoty z důvodu ukončení realizace. Cílová hodnota tohoto indikátoru byla snížena z 5 na 2 objekty z důvodu: a) vyčerpání finančních prostředků pro dané opatření b) nárust cen za stavební práce c) nnemožnosti realizace projektů z důvodu možnosti podpory pouze ve 2 ORP (ze 3) Průměrná cena za měrnou jednotku indikátoru v podobě rekonstrukce hasičské zbrojnice a Přístavby garážových prostor JPO II a III je 3 000 000 Kč. Tato finální změna byla komunitně projednána a v území MAS ŽR a schválena Valnou hromadou MAS ŽR 14.11.2019.
G6: 5 70 01 | H6: Počet nové techniky a věcných prostředků složek IZS | I6: sety | J6: výstupu | K6: 0 | L6: 2014-01-01 | M6: 0 | N6: 2023-12-31 | O6: xxx | P6: Cílová hodnota indikátoru byla stanovena ve výši 5 setů technického a věcného vybavení (1 set = 1 elektrocentrála) složek JPO II a JPO III. Tyto prostředky budou sloužit k řešení mimořádných událostí, spojených se změnami klimatu, jako jsou přívalové a dlouhotrvající intenzivní srážky, nadprůměrné sněhové srážky, masivní námrazy, povodně, déletrvající sucha, vichřice, sesuvy, rozsáhlé požáry či mimořádné události antropogenního původu. Požadavek vychází ze šetření v území a ze zásobníku projektů, který byl na základě zpracování analytické části zpracován pro programové období. Potřeba realizace indikátoru vychází ze socioekonomické analýzy, 2.1.10. Bezpečnost, str. 62. Cílové hodnoty bude dosaženo do 31.12.2023. Průměrnou cenu MAS stanovila na základě šetření (zanalyzování) pořizovacích cen na základě požadavků jednotek JPO II a JPO III . Cílová hodnota ve výši 5 setů se skládá z pěti elektrocentrál v průměrné ceně 400 000 Kč/ks. Cena byla zjištěna na základě potřeb JPO II a III, dané požadavky byly zanalyzovány a zjištěny ceny obdobné techniky u potencionálních dodavatelů. V návaznosti na zjištěnou průměrnou cenu a absorpční kapacitu opatření byla cílová hodnota stanovena na 5 setů. | Q6: K datu 14.11.2019 došlo u tohoto indikátoru k finalizaci cílové hodnoty z důvodu ukončení realizace. Cílová hodnota tohoto indikátoru byla snížena z 5 na 0 setů z důvodu: a) vyčerpání finančních prostředků pro dané opatření b) nemožnosti realizace projektů z důvodu možnosti podpory pouze ve 2 ORP (ze 3) d) dle původních podmínek nebyl o možnou techniku zájem e) na základě střednědobého hodnocení nebyly zjištěny žádné možné projekty k realizaci. Tato finální změna byla komunitně projednána a v území MAS ŽR a schválena Valnou hromadou MAS ŽR 14.11.2019.
B7: 1.1.2. Krajina je naše zrcadlo | C7: OP ŽP | D7: 4 | E7: 1 | F7: 4.3. | G7: 46500 | H7: Plocha stanovišť, které jsou podporovány s cílem zlepšit jejich stav zachování | I7: ha | J7: výstupu | K7: 0 | L7: 2014-01-01 | M7: 8 | N7: 2023-12-31 | O7: 1.6 | P7: Hodnota výsstupového indikátoru, a to jak výchozí tak cílová byla přidělena Ministerstvem Životního prostředí a Agenturou ochrany a krajiny ČR. Výchozí hodnota je stanovena k 31.12.2014 a cílová k 31.12.2023. MAS vyhlásí první výzvy až v roce 2017, to znamená, že realizace budou postupně zahájeny až v roce 2018, z tohoto důvodu je hodnota mid –term stanovena na 1,6 ha.. | Q7: xxx
G8: 45415 | H8: Počet lokalit, kde byly posíleny ekosystémové funkce krajinyí | I8: lokalita | J8: výsledku | K8: 0 | L8: 2014-01-01 | M8: 2 | N8: 2023-12-31 | O8: 1 | P8: Hodnota výsledkového indikátoru, a to jak výchozí tak cílová byla přidělena Ministerstvem Životního prostředí a Agenturou ochrany a krajiny ČR. Výchozí hodnota je stanovena k 31.12.2014 a cílová k 31.12.2023. MAS vyhlásí první výzvy až v roce 2017, to znamená, že realizace budou postupně zahájeny až v roce 2018, z tohoto důvodu je hodnota mid – term stanovena na 1 lokalitu. | Q8: xxx
A9: SC 2 | B9: 2.3.1. Rekreační lesy | C9: PRV | D9: 6 | E9: 6b | F9: 19.2. | G9: 92702 | H9: Počet podpořených operací (akcí) | I9: akce | J9: výstupu | K9: 0 | L9: 2014-01-01 | M9: 3 | N9: 2023-12-31 | O9: 0 | P9: Cílová hodnota byla nastavena, dle provedené analýzy území v rámci, které vznikl i zásobník projektů, který byl aktualizován na základě střednědobého hodnocení SCLLD k 31.12.2018. Hodnota pro střednědobé hodnocení je 0 akce | Q9: xxx
G10: 93001 | H10: Celková plocha (ha) | I10: ha | J10: výstupu | K10: 0 | L10: 2014-01-01 | M10: 25.8 | N10: 2023-12-31 | O10: 0 | P10: Cílová hodnota byla nastavena, dle provedené analýzy území v rámci, které vznikl i zásobník projektů, který byl aktualizován na základě střednědobého hodnocení SCLLD k 31.12.2018. Hodnota pro střednědobé hodnocení je 0 hektar | Q10: xxx
A11: SC3 | B11: 3.1.1. | C11: PRV | D11: 6 | E11: 6b | F11: 19.3. | G11: 92501 | H11: Celkové veřejné výdaje | I11: Eura | J11: výstup | K11: 0 | L11: 2014-01-01 | M11: 50,107 | N11: 2023-12-31 | O11: 25,053 | P11: Cílová hodnota byla stanovena na základě určené celkové alokace MAS na projekty spolupráce 19.3.1. | Q11: xxx
B12: 3.1.6. | C12: PRV | D12: 6 | E12: 6b | F12: 19.2. | G12: 92702 | H12: Počet podpořených operací (akcí) | I12: akce | J12: výstup | K12: 0 | L12: 2014-01-01 | M12: 11 | N12: 2023-12-31 | O12: 0 | P12: Cílová hodnota byla nastavena, dle provedené analýzy území v rámci, které vznikl i zásobník projektů, který byl aktualizován na základě střednědobého hodnocení SCLLD k 31.12.2018. Hodnota pro střednědobé hodnocení je 0 akcí | Q12: xxx
G13: 94800 | H13: Pracovní místa vytvořená v rámci podpořených projektů (Leader) | I13: FTE | J13: výsledek | K13: 0 | L13: 2014-01-01 | M13: 4 | N13: 2023-12-31 | O13: 0 | P13: Cílová hodnota byla nastavena, dle provedené analýzy území v rámci, které vznikl i zásobník projektů, který byl aktualizován na základě střednědobého hodnocení SCLLD k 31.12.2018. Hodnota pro střednědobé hodnocení je 0 pracovních míst | Q13: xxx
B14: 3.1.4. Sociální služby | C14: OP ZAM | D14: 2 | E14: 3 | F14: 2.3. | G14: 6 70 01 | H14: Kapacita podpořených služeb | I14: místa | J14: výstupu | K14: 0 | L14: 2013 | M14: 23 | N14: 2023-12-31 | O14: xxx | P14: Hodnota indikátoru byla stanovena na základě průzkumu území a zmapování sociálních služeb v území, které jsou popsány v analytické části v kap 2.1.4. Na základě průzkumu vznikl zásobník projektů, který mapuje i vznik nových a rozvoj stávajících sociálních služeb. Všechny hodnoty indikátorů byly stanoveny na základě kombinace typových (modelových) projektů, vycházejících ze zásobníku projektových záměrů pro příslušné opatření a kvalifikovaného odhadu při výši alokace. Modelové projekty vycházely z běžné praxe lokálních poskytovatelů služeb a zohledňují standard financování služeb v rámci Pardubického kraje. V rámci realizace opatření se předpokládá podpora 3 aktivit: - rozšíření okamžité kapacity nízkoprahového zařízení pro děti a mládež ve věku 15 – 18 let (okamžitá kapacita se rozšíří o 7 osob) - rozšíření okamžité kapacity sociálně aktivizační služby pro rodiny s dětmi (okamžitá kapacita se rozšíří o 8 osob) - nově vznikne sociálně terapeutická dílna s okamžitou kapacitou 8 osob Výčet možných aktivit v realizaci opatření je nastaven širší z důvodu, že v rámci realizace programovacího období může dojít k potřebě vzniku nové služby. Způsob výpočtu: Na tento indikátor bylo přiděleno dle průzkumu území a absorpční kapacitě cca 25 % alokace. Hodnota byla stanovena jako optimální v návaznosti na přidělený objem finančních prostředků, počet projektů včetně stanovené minimální výše na projekt (min. 400 tis. Kč) a druh podporovaných aktivit, které by měly přistupovat k osobám individuálně. Náklady na místo vycházejí z národní kvalifikace a zohledňují vybavení a zajištění personálu po celou dobu projektu. | Q14: xxx
G15: 6 00 00 | H15: Celkový počet účastníků | I15: účastníci | J15: výstupu | K15: 0 | L15: 2013 | M15: 40 | N15: 2023-12-31 | O15: xxx | P15: Hodnota indikátoru byla stanovena na základě průzkumu území s ohledem na absorpční kapacitu a hodnotu indikátoru 67001 a 67010. Hodnoty indikátoru byla stanovena na základě kombinace typových (modelových) projektů, vycházejících ze zásobníku projektových záměrů pro příslušné opatření a kvalifikovaného odhadu při výši alokace. Modelové projekty vycházely z běžné praxe lokálních poskytovatelů služeb a zohledňují standard financování služeb v rámci Pardubického kraje. V rámci realizace opatření se předpokládá podpora následujících aktivit: - rozšíření okamžité kapacity nízkoprahového zařízení pro děti a mládež ve věku 15 – 18 let (okamžitá kapacita se rozšíří o 7 osob) - rozšíření okamžité kapacity sociálně aktivizační služby pro rodiny s dětmi (okamžitá kapacita se rozšíří o 8 osob) - nově vznikne sociálně terapeutická dílna s okamžitou kapacitou 8 osob - komunitní práce – v rámci realizace komunitní práce v komunitním centru se předpokládá při zohlednění pracovního úvazku komunitního pracovníka podpora 17 účastníků. Výčet možných aktivit v realizaci opatření je nastaven širší z důvodu, že v rámci realizace programovacího období může dojít k potřebě vzniku nové služby. Způsob výpočtu: Na opatření bylo přiděleno cca 25 % alokace, tj. 3 259 750,- Kč, průměrná cena na účastníka byla stanovena na cca 81 tis. Kč (s ohledem na doporučení ŘO), hodnota indikátoru byla tedy stanovena na 40 účastníků. | Q15: xxx
G16: 5 51 02 | H16: Počet podpořených komunitních center | I16: zařízení | J16: výstupu | K16: 0 | L16: 2013 | M16: 1 | N16: 2023-12-31 | O16: xxx | P16: Hodnota indikátoru byla stanovena na základě průzkumu území s ohledem na absorpční kapacitu. V území byla zjištěna potřeba rpodpory 1 komunitního centra. | Q16: xxx
G17: 6 70 10 | H17: Využívání podpořených služeb | I17: osoby | J17: výsledku | K17: 0 | L17: 2013 | M17: 50 | N17: 2023-12-31 | O17: xxx | P17: Hodnota indikátoru byla stanovena na základě průzkumu území a zmapování stávajících sociálních služeb, které jsou popsány v analitycké části v kap 2.1.4. Hodnota indikátoru byla stanovena na základě průzkumu území s ohledem na absorpční kapacitu a hodnotu indikátoru 67001 a 60000. V rámci indikátoru je uveden počet osob, které využili službu či program během trvání projektu, a které jsou vedeny jako anonymní klienti (v rámci realizace opatření se předpokládá možná podpora projektu, které se budou zaměřovat na služby sociální prevence a odborného sociálního poradenství) nebo jejichž podpora nepřesáhla bagatelní podporu v rámci poskytované služby nízkoprahová zařízení pro děti a mládež. O daných osobách povede každý příjemce evidenci a bude schopen doložit daný počet osob. V komunitním centru budou podpořeny osoby s nižší než bagatelní podporou vzhledem k aktivitám v komunitním centru. Cílová skupina bude řešit své dlouhodobé probléby. V rámci realizace projektů se přepodkládá vznik sociálně terapeutické dílny (s okamžitou kapacitou 8 osob). Výsledná hodnota indikátoru byla stanovena na 50 osob, které využili službu či program během trvání projektu, dle standardu využívaných pro danou službu. Služba bude poskytována osobám v nepříznivých sociální či zdravotní situaci. | Q17: xxx
G18: 6 73 15 | H18: Bývalí účastníci projektů v oblasti sociálních služeb, u nichž služba naplnila svůj účel | I18: osoby | J18: výsledku | K18: 0 | L18: 2013 | M18: 13 | N18: 2023-12-31 | O18: xxx | P18: Hodnota stanovena na základě průzkumu území s ohledem na absorpční kapacitu, indikátor 60000 a odhad úspěšnosti projektů v oblasti sociálních služeb. | Q18: xxx
G19: 6 73 10 | H19: Bývalí účastníci projektů u nichž intervence formou sociální práce naplnila svůj účel | I19: osoby | J19: výsledku | K19: 0 | L19: 2013 | M19: 15 | N19: 2023-12-31 | O19: xxx | P19: Hodnota stanovena na základě průzkumu území s ohledem na absorpční kapacitu a výši indikátoru 60000 a 67315. | Q19: xxx
B20: 3.1.5. Bezpečná a dostupná doprava | C20: IROP | D20: 4 | E20: 9d | F20: 4.1. | G20: 7 63 10 | H20: Podíl cyklistiky na přepravních výkonech | I20: % | J20: výsledku | K20: 7 | L20: 2011-12-31 | M20: 10 | N20: 2023-12-31 | O20: xxx | P20: Hodnota výsledkového indikátoru, a to jak výchozí tak cílová byla převzata z IROP. Výchozí hodnota je stanovena k 31.12.2011 a cílová k 31.12.2023. Milník v rámci daného indikátoru není nastaven. | Q20: xxx
G21: 7 51 20 | H21: Podíl veřejné osobní dopravy na celkových výkonech v osobní dopravě | I21: % | J21: výsledku | K21: 30 | L21: 2011-12-31 | M21: 35 | N21: 2023-12-31 | O21: xxx | P21: Hodnota výsledkového indikátoru, a to jak výchozí tak cílová byla převzata z IROP. Výchozí hodnota je stanovena k 31.12.2011 a cílová k 31.12.2023. Milník v rámci daného indikátoru není nastaven. | Q21: xxx
G22: 7 48 01 | H22: Počet nově pořízených vozidel pro veřejnou dopravu | I22: vozidla | J22: výstupu | K22: 0 | L22: 2014-01-01 | M22: 0 | N22: 2023-12-31 | O22: 0 | P22: Cílová hodnota indikátoru byla stanovena ve výši 1 vozidla pro veřejnou dopravu. Na základě průzkumu v území s ohledem na absorbění kapacitu byla zjištěna potřeba pořízení vozidla pro veřejnou dopravu typu CNG Bus. Cílové hodnoty bude dosaženo, až v roce 2023, s realizací projektu se počítá až v druhé polovině programovacího období, proto hodnota mid-therm byla stanovena 0. Cena byla stanovena na základě zjištění obvyklé ceny v rámci analýzy prodejců daných vozidel. Cena byla stanovena na cca 4 miliony Kč | Q22: K datu 14.11.2019 došlo ke zrušení tohoto indikátoru z důvodu odebrání aktivty Nízkoemisní vozidla z PR IROP z důvodu a) na základě střednědobého hodnocení nebyly zjištěny žádné možné projekty k realizaci b) původně plánovaný projekt byl již realizován z jiných zdrojů. V důsledku toho byly hodnoty vynulovány s tím, že původní cílová hodnota Počet nově pořízených vozidel pro veřejnou dopravu byla stanovena ve výšši 1 vozidlo. Tato změna byla komunitně projednána a v území MAS ŽR a schválena Valnou hromadou MAS ŽR 14.11.2019.
G23: 7 50 01 | H23: Počet realizací vedoucích ke zvýšení bezpečnosti v dopravě | I23: realizace | J23: výstupu | K23: 0 | L23: 2014-01-01 | M23: 8 | N23: 2023-12-31 | O23: xxx | P23: Cílová hodnota indikátoru byla stanovena na základě průzkumu území s ohledem na absorpční kapacitu,zásobník projektů, alokovanou částku a průměrné ceny na 8 opatření vedoucích k zvyšování bezpečnosti dopravy. Na základě zjištění obvyklé ceny jednotlivých opatření vedoucích k dosažení realizace vedoucí k zvýšení bezpečnosti v dopravě byla stanovena průměrná cena na jednotu indikátoru (realizaci) ve výši 1 milionu Kč za realizaci (z toho průměrná cena bezbariérového přístupu zastávek cca 1 mil. Kč/realizaci, přizpůsobení komunikací pro nemotorovou dopravu osobám s omezenou pohyblivostí nebo orientací cca 1 mil. Kč/realizaci) | Q23: xxx
G24: 7 61 00 | H24: Délka nově vybudovaných cyklostezek a cyklotras | I24: km | J24: výstupu | K24: 0 | L24: 2014-01-01 | M24: 1.15 | N24: 2023-12-31 | O24: xxx | P24: Cílová hodnota indikátoru byla stanovena na základě průzkumu území s ohledem na absorpční kapacitu,zásobník projektů, alokovanou částku na 3 km nové cyklostezky a 0 km nové cyklotrasy. Zásobník projektů vznikl na základě šetření problémů a potřeb v území a odráží se také z provedené socioekonomické analýzy (kap. 2.1.3. Doprava, str. 32). Cílové hodnoty bude dosaženo do 31.12.2023. Průměrnou cena MAS stanovila na základě porovnání cen v realizovaných a tematicky a rozsahem totožných projektů. Na základě zjištění obvyklé průměrné ceny za výstavbu nové cyklostezky se odhaduje cena za 1 km nové cyklostezky na 1 milion Kč za km. MAS na základě zjištění požadavku území nebude vytvářet žádnou novou cyklotrasu, protože veškeré jsou vybudované v letech 1999 – 2001 a jsou plně dostačující. V návaznosti na zjištěnou průměrnou cenu a absorpční kapacitu byla cílová hodnota stanovena na 3 km nových cyklostezek a 0 km nové cyklotrasy. | Q24: K datu 14.11.2019 došlo u tohoto indikátoru k finalizaci cílové hodnoty. Cílová hodnota tohoto indikátoru byla snížena ze 3 na 1,15 km, z důvodu a) nárust cen za stavební práce b) zjištěné absorbční kapacity území v rámci Střednědobého hodnocení, kdy nebyl zjištěn žádný další projektový záměr k realizaci c) původně plánované projekty byly realizovány z jiných zdrojů nebo se nestihne jich realizace z důvodu řešení majetkových vztahů. Průměrná skutečná cena za 1 km nově vybudované cyklostezky činí 8 mil. Kč. Tato změna byla komunitně projednána a v území MAS ŽR a schválena Valnou hromadou MAS ŽR 14.11.2019.
G25: 7 62 00 | H25: Délka rekonstruovaných cyklostezek a cyklotras | I25: km | J25: výstupu | K25: 0 | L25: 2014-01-01 | M25: 0 | N25: 2023-12-31 | O25: xxx | P25: Cílová hodnota indikátoru byla stanovena na základě průzkumu území s ohledem na absorpční kapacitu,zásobník projektů, alokovanou částku na 0 km zrekonstruované cyklostezky a 15 km cyklotrasy. Předpokládá se, že vznikne 0 km zrekonstruované či zmodernizované cyklostezky a 15 km cyklotrasy. Zásobník projektů vznikl na základě šetření problémů a potřeb v území a odráží se také z provedené socioekonomické analýzy (kap. 2.1.3. Doprava, str. 32). Cílové hodnoty bude dosaženo do 31.12.2023. Průměrnou cena MAS stanovila na základě porovnání cen v realizovaných a tematicky a rozsahem totožných projektů, zároveň MAS provedla analýzu cenových nabídek firem zabývajících se rekonstrukcí a modernizací cyklostezek a cyklotras. Na základě zjištění průměrné ceny zrekonstruované či zmodernizované cyklotrasy 400 000 Kč za 1 km. Na základě analýzy území nebyla zjištěna potřeba realizace rekonstrukce cyklostezek. V návaznosti na zjištěnou průměrnou cenu a absorpční kapacitu byla cílová hodnota stanovena na 0 km zrekonstruovaných cyklostezek a 15 km zrekonstruované cyklotrasy. | Q25: K datu 14.11.2019 došlo u tohoto indikátoru k finalizaci cílové hodnoty z důvodu ukončení realizace. Cílová hodnota tohoto indikátoru byla snížena z 15 na 0 km, z důvodu a) na základě střednědobého hodnocení nebyly zjištěny žádné možné projekty k realizaci b) původně plánované projekty byly již realizovány z jiných zdrojů nebo se nestihne jich realizace z důvodu řešení majetkových vztahů. Tato změna byla komunitně projednána a v území MAS ŽR a schválena Valnou hromadou MAS ŽR 14.11.2019.
G26: 7 64 01 | H26: Počet parkovacích míst pro jízdní kola | I26: Parkovací místa | J26: výstupu | K26: 0 | L26: 2014-01-01 | M26: 0 | N26: 2023-12-31 | O26: xxx | P26: Cílová hodnota byla stanovena na základě zjištění obvyklé ceny v území se předpokládá hodnota max. 5 000 Kč za jedno parkovací místo. V návaznosti na zjištěnou průměrnou cenu a absorpční kapacitu byla cílová hodnota stanovena na 5 parkovacích míst pro jízdní kolo např. v podobě stojanu. | Q26: K datu 14.11.2019 došlo u tohoto indikátoru k finalizaci cílové hodnoty z důvodu ukončení realizace. Cílová hodnota tohoto indikátoru byla snížena z 5 na 0 z důvodu, že při vybudování cyklostezky Veselí - Valy jsou parkovací místa v počtu 5 realizována, ale žadatel parkovací místa realizuje z vlastních zdrojů v rámci projektu, z tohoto důvodu indikátor pro realizaci neuplatňuje, a tak se jeho realizace nepromítne do naplňování indikátorů SCLLD.V podstatě je tedy tento indikátor naplněn, jen ho není možné vykázat. Tato změna byla komunitně projednána a v území MAS ŽR a schválena Valnou hromadou MAS ŽR 14.11.2019.
B27: 3.2.1. Podpora místních trhů | C27: PRV | D27: 6 | E27: 6b | F27: 19.2. | G27: 93102 | H27: Počet podpořených kooperačních činností | I27: činnosti spolupráce | J27: výstup | K27: 0 | L27: 2014-01-01 | M27: 0 | N27: 2023-12-31 | O27: 0 | P27: Cílová hodnota byla nastavena, dle provedené analýzy území v rámci, které vznikl i zásobník projektů, který byl aktualizován na základě střednědobého hodnocení SCLLD k 31.12.2018. Hodnota pro střednědobé hodnocení je 0 činnosti spolupráce | Q27: xxx
G28: 93701 | H28: Počet podpořených podniků/příjemců | I28: podniky | J28: výstup | K28: 0 | L28: 2014-01-01 | M28: 0 | N28: 2023-12-31 | O28: 0 | P28: Cílová hodnota byla nastavena, dle provedené analýzy území v rámci, které vznikl i zásobník projektů, který byl aktualizován na základě střednědobého hodnocení SCLLD k 31.12.2018. Hodnota pro střednědobé hodnocení jee 0 podniky | Q28: xxx
G29: 94800 | H29: Pracovní místa vytvořená v rámci podpořených projektů (Leader) | I29: FTE | J29: výsledku | K29: 0 | L29: 2014-01-01 | M29: 0 | N29: 2023-12-31 | O29: 0 | P29: Cílová hodnota byla nastavena, dle provedené analýzy území v rámci, které vznikl i zásobník projektů, který byl aktualizován na základě střednědobého hodnocení SCLLD k 31.12.2018. Hodnota pro střednědobé hodnocení je 0 pracovních míst | Q29: xxx
B30: 3.2.2. Regionální produkce | C30: PRV | D30: 6 | E30: 6b | F30: 19.2. | G30: 93701 | H30: Počet podpořených zemědělských podniků/příjemců | I30: podniky | J30: výstupu | K30: 0 | L30: 2014-01-01 | M30: 1 | N30: 2023-12-31 | O30: 0 | P30: Cílová hodnota byla nastavena, dle provedené analýzy území v rámci, které vznikl i zásobník projektů, který byl aktualizován na základě střednědobého hodnocení SCLLD k 31.12.2018. Hodnota pro střednědobé hodnocení je 0 podnik. | Q30: xxx
G31: 94800 | H31: Pracovní místa vytvořená v rámci podpořených projektů (Leader) | I31: FTE | J31: výsledku | K31: 0 | L31: 2014-01-01 | M31: 0 | N31: 2023-12-31 | O31: 0 | P31: Cílová hodnota byla nastavena, dle provedené analýzy území v rámci, které vznikl i zásobník projektů. Hodnota pro střednědobé hodnocení je 0 pracovních míst | Q31: xxx
B32: 3.3.1. Krajina krásnější | C32: PRV | D32: 6 | E32: 6b | F32: 19.2. | G32: 93701 | H32: Počet podpořených zemědělských podniků/příjemců | I32: podniky | J32: výstupu | K32: 0 | L32: 2014-01-01 | M32: 16 | N32: 2023-12-31 | O32: 4 | P32: Cílová hodnota byla nastavena, dle provedené analýzy území v rámci, které vznikl i zásobník projektů, který byl aktualizován na základě střednědobého hodnocení SCLLD k 31.12.2018. Hodnota pro střednědobé hodnocení jsou 4 podniky | Q32: xxx
G33: 94800 | H33: Pracovní místa vytvořená v rámci podpořených projektů (Leader) | I33: FTE | J33: výsledku | K33: 0 | L33: 2014-01-01 | M33: 0 | N33: 2023-12-31 | O33: 0 | P33: Cílová hodnota byla nastavena, dle provedené analýzy území v rámci, které vznikl i zásobník projektů, který byl aktualizován na základě střednědobého hodnocení SCLLD k 31.12.2018. Hodnota pro střednědobé hodnocení je 0 pracovních míst | Q33: xxx
B34: 3.3.2. Rozvoj nezemědělské činnosti | C34: PRV | D34: 6 | E34: 6b | F34: 19.2. | G34: 93701 | H34: Počet podpořených zemědělských podniků/příjemců | I34: podniky | J34: výstupu | K34: 0 | L34: 2014-01-01 | M34: 4 | N34: 2023-12-31 | O34: 2 | P34: Cílová hodnota byla nastavena, dle provedené analýzy území v rámci, které vznikl i zásobník projektů, který byl aktualizován na základě střednědobého hodnocení SCLLD k 31.12.2018. Hodnota pro střednědobé hodnocení 2 podniky. | Q34: xxx
G35: 94800 | H35: Pracovní místa vytvořená v rámci podpořených projektů (Leader) | I35: FTE | J35: výsledku | K35: 0 | L35: 2014-01-01 | M35: 1 | N35: 2023-12-31 | O35: 0 | P35: Cílová hodnota byla nastavena, dle provedené analýzy území v rámci, které vznikl i zásobník projektů, který byl aktualizován na základě střednědobého hodnocení SCLLD k 31.12.2018. Hodnota pro střednědobé hodnocení je 0 pracovních míst. | Q35: xxx
B36: 3.3.3. Lesnická infrastruktura | C36: PRV | D36: 6 | E36: 6b | F36: 19.2. | G36: 93701 | H36: Počet podpořených zemědělských podniků/příjemců | I36: podniky | J36: výstupu | K36: 0 | L36: 2014-01-01 | M36: 0 | N36: 2023-12-31 | O36: 0 | P36: Cílová hodnota byla nastavena, dle provedené analýzy území v rámci, které vznikl i zásobník projektů, který byl aktualizován na základě střednědobého hodnocení SCLLD k 31.12.2018. Hodnota pro střednědobé hodnocení je 0 podnik | Q36: xxx
G37: 94302 | H37: Celková délka lesních cest (km) | I37: km | J37: výsledku | K37: 0 | L37: 2014-01-01 | M37: 0 | N37: 2023-12-31 | O37: 0 | P37: Cílová hodnota byla nastavena, dle provedené analýzy území v rámci, které vznikl i zásobník projektů, který byl aktualizován na základě střednědobého hodnocení SCLLD k 31.12.2018. Hodnota pro střednědobé hodnocení je 0 km lesních cest. | Q37: xxx
B38: 3.3.4. Lesnická technika | C38: PRV | D38: 6 | E38: 6b | F38: 19.2. | G38: 93701 | H38: Počet podpořených zemědělských podniků/příjemců | I38: podniky | J38: výstupu | K38: 0 | L38: 2014-01-01 | M38: 0 | N38: 2023-12-31 | O38: 0 | P38: Cílová hodnota byla nastavena, dle provedené analýzy území v rámci, které vznikl i zásobník projektů, který byl aktualizován na základě střednědobého hodnocení SCLLD k 31.12.2018. Hodnota pro střednědobé hodnocení jsou 0 podniky. | Q38: xxx
G39: 94800 | H39: Pracovní místa vytvořená v rámci podpořených projektů (Leader) | I39: FTE | J39: výsledku | K39: 0 | L39: 2014-01-01 | M39: 0 | N39: 2023-12-31 | O39: 0 | P39: Cílová hodnota byla nastavena, dle provedené analýzy území v rámci, které vznikl i zásobník projektů, který byl aktualizován na základě střednědobého hodnocení SCLLD k 31.12.2018. Hodnota pro střednědobé hodnocení je 0 pracovních míst. | Q39: xxx
B40: 3.4.1. Rozvoj sociálního podnikání | C40: IROP | D40: 4 | E40: 9d | F40: 4.1. | G40: 1 04 11 | H40: Míra nezaměstnanosti osob s nejnižším vzděláním | I40: % | J40: výsledku | K40: 28.5 | L40: 2012-12-31 | M40: 0 | N40: 2023-12-31 | O40: xxx | P40: Hodnoty výsledkových indikátoru, a to jak výchozí tak cílová vychází ze socio-ekonomické analýzy území a v cílové hodnotě se odráží potřeby území, dle zásobníku projektů. Výchozí hodnota je stanovena k 31.12.2012 a cílová k 31.12.2023. Hodnota mid-therm není nastavena. | Q40: K datu 14.11.2019 došlo ke zrušení tohoto indikátoru z důvodu odebrání opatření Rozvoj sociálního podnikání z PR IROP z důvodu a) zrušení daného opatření a přesunu finančních prostředků na OP 1 Bezpečná a dostupná doprava b) nezájmu realizace projektů pro danou aktivitu, kdy daná skutečnost byla zjištěna v rámci Střednědobého hodnocení SCLLD MAS ŽR, v rámci, kterého byla zjištěna aktuální absorbční kapacita území a připravenost realizace projektů. c) původně plánované projekty nebylo možno realizovat z důvodu nerealizace plánovaného předcházejícího projektu a u druhého projektu došlo ke změně vedení společnosti, která má jiné vize, které není možné podpořit. V důsledku toho byly hodnoty vynulovány s tím, že původní cílová hodnota Míra nezaměstnanosti osob s nejnižším vzděláním byla stanovena ve výšši 22%. Tato změna byla komunitně projednána v území MAS ŽR a schválena Valnou hromadou MAS ŽR 14.11.2019.
G41: 1 00 00 | H41: Počet podniků pobírajících podporu | I41: podniky | J41: výstupu | K41: 0 | L41: 2014-01-01 | M41: 0 | N41: 2023-12-31 | O41: 0 | P41: Cílová hodnota indikátoru a milníku byla stanovena na základě průzkumu území dle zásobníku projektů s ohledem na absorpční kapacitu a alokovanou částku na 2 podniky pobírající podporu, při čemž hodnota mid-therm se počítá, že by byla 1 podnik pobírající podporu. Očekává se podpora 1x existující podnik, 1x nový podnik.Tento požadavek vychází ze šetření v území a ze zásobníku projektů. Potřeba realizace indikátoru vychází ze socioekonomické analýzy, kap. 2.1.4.. Vybavenost obcí, služby a život v obcích, str. 33 a 34. V rámci realizace programovacího období se předpokládá, že podporu využijí dva sociální podniky (jeden stávající, který se v území nachází a jeden nový), tyto podniky chtějí dle zásobníku projektů realizovat postupně projekty, které povedou k jejich rozvoji. Průměrná hodnota podpory se předpokládá na jeden podnik cca 3 miliony Kč (v rámci projektů proběhnou rekonstrukce prostor, jejich vybavení a pořízení vybavení pro rozvoj daných podniků). Ceny byly zjištěny z analýzy nabídek potenciálních dodavatelů. | Q41: K datu 14.11.2019 došlo ke zrušení tohoto indikátoru z důvodu odebrání opatření Rozvoj sociálního podnikání z PR IROP z důvodu a) zrušení daného opatření a přesunu finančních prostředků na OP 1 Bezpečná a dostupná doprava b) nezájmu realizace projektů pro danou aktivitu, kdy daná skutečnost byla zjištěna v rámci Střednědobého hodnocení SCLLD MAS ŽR, v rámci, kterého byla zjištěna aktuální absorbční kapacity území a připravenost realizace projektů. c) původně plánované porjekty nebylo možno realizovat z důvodu nerealizace plánovaného předcházejícího projektu a u druhého projektu došlo ke změně vedení společnosti, která má jiné vize, které není možné podpořit. V důsledku toho byly hodnoty vynulovány s tím, že původní cílová hodnota Počet podniků pobírající podporu byla stanovena ve výšši 2 podniky. Tato změna byla komunitně projednána a v území MAS ŽR a schválena Valnou hromadou MAS ŽR 14.11.2019.
G42: 1 01 02 | H42: Počet podniků pobírajících granty | I42: podniky | J42: výstupu | K42: 0 | L42: 2014-01-01 | M42: 0 | N42: 2023-12-31 | O42: xxx | P42: Cílová hodnota indikátoru a milníku byla stanovena na základě průzkumu území dle zásobníku projektů s ohledem na absorpční kapacitu a alokovanou částku na 2 podniky pobírající podporu, při čemž hodnota mid-therm se počítá, že by byla 1 podnik pobírající podporu. Očekává se podpora 1x existující podnik, 1x nový podnik. Potřeba realizace indikátoru vychází ze socioekonomické analýzy, kap. 2.1.4.. Vybavenost obcí, služby a život v obcích, str. 33 a 34. V rámci realizace programovacího období se předpokládá, že podporu využijí dva sociální podniky (jeden stávající, který se v území nachází a jeden nový), tyto podniky chtějí dle zásobníku projektů realizovat postupně projekty, které povedou k jejich rozvoji. Průměrná hodnota podpory se předpokládá na jeden podnik cca 3 miliony Kč (v rámci projektů proběhnou rekonstrukce prostor, jejich vybavení a pořízení vybavení pro rozvoj daných podniků). Ceny byly zjištěny z analýzy nabídek potenciálních dodavatelů. | Q42: K datu 14.11.2019 došlo ke zrušení tohoto indikátoru z důvodu odebrání opatření Rozvoj sociálního podnikání z PR IROP z důvodu a) nezájmu realizace projektů pro danou aktivitu, kdy daná skutečnost byla zjištěna v rámci Střednědobého hodnocení SCLLD MAS ŽR, v rámci kterého byla zjištěna aktuální absorbční kapacita území a připravenost realizace projektů. b) původně plánované projekty nebylo možno realizovat z důvodu nerealizace plánovaného předcházejícího projektu a u druhého projektu došlo ke změně vedení společnosti, která má jiné vize, které není možné podpořit. V důsledku toho byly hodnoty vynulovány s tím, že původní cílová hodnota Počet podniků pobírající granty byla stanovena ve výšši 2 podniky. Tato změna byla komunitně projednána v území MAS ŽR a schválena Valnou hromadou MAS ŽR 14.11.2019.
G43: 1 04 00 | H43: Zvýšení zaměstnanosti v podporovaných podnicích | I43: FTE | J43: výstupu | K43: 0 | L43: 2014-01-01 | M43: 0 | N43: 2023-12-31 | O43: xxx | P43: Cílová hodnota indikátoru byla získána přepočtem alokované částky na toto opatření dle JCI (tj. 6 000 000 Kč/400 000 Kč), JCI 400 tis. Kč. Z hodnoty FTE 15 bude min. 1/3 připadat na znevýhodněné skupiny, tj. 5. Předpokládané náklady na vytvoření 1 FTE (jednoho plného pracovního úvazku) je 400 000,- Kč | Q43: K datu 14.11.2019 došlo ke zrušení tohoto indikátoru z důvodu odebrání opatření Rozvoj sociálního podnikání z PR IROP z důvodu a) zrušení daného opatření a přesunu finančních prostředků na OP 1 Bezpečná a dostupná doprava b) nezájmu realizace projektů pro danou aktivitu, kdy daná skutečnost byla zjištěna v rámci Střednědobého hodnocení SCLLD MAS ŽR, v rámci, kterého byla zjištěna aktuální absorbční kapacity území a připravenost realizace projektů. c) původně plánované porjekty nebylo možno realizovat z důvodu nerealizace plánovaného předcházejícího projektu a u druhého projektu došlo ke změně vedení společnosti, která má jiné vize, které není možné podpořit. V důsledku toho byly hodnoty vynulovány s tím, že původní cílová hodnota Zvýšení zaměstnanosti v podporovaných podnicích, které dostávají podporu byla stanovena ve výšši 15 FTE. Tato změna byla komunitně projednána v území MAS ŽR a schválena Valnou hromadou MAS ŽR 14.11.2019.
G44: 1 01 05 | H44: Počet nových podniků, které dostávají podporu | I44: Podniky | J44: výstupu | K44: 0 | L44: 2014-01-01 | M44: 0 | N44: 2023-12-31 | O44: xxx | P44: Cílová hodnota indikátoru byla získána na základě průzkumu území s ohledem na absorpční kapacitu a alokovanou částku, JCI 3 mil. Kč (tj.hodnota za 1 nový podnik) Hodnota indikátoru byla stanovena dle zásobníku projektů na 1 nově vzniklých sociálních podniků. Tento požadavek vychází ze šetření v území a ze zásobníku projektů. Potřeba realizace indikátoru vychází ze socioekonomické analýzy, kap. 2.1.4.. Vybavenost obcí, služby a život v obcích, str. 33 a 34. Průměrná hodnota podpory se předpokládá na jeden podnik cca 3 miliony Kč (v rámci projektů proběhnou rekonstrukce prostor, jejich vybavení a pořízení vybavení pro rozvoj daného podniku). Ceny byly zjištěny z analýzy nabídek potenciálních dodavatelů. | Q44: K datu 14.11.2019 došlo ke zrušení tohoto indikátoru z důvodu odebrání opatření Rozvoj sociálního podnikání z PR IROP z důvodu a) zrušení daného opatření a přesunu finančních prostředků na OP 1 Bezpečná a dostupná doprava b) nezájmu realizace projektů pro danou aktivitu, kdy daná skutečnost byla zjištěna v rámci Střednědobého hodnocení SCLLD MAS ŽR, v rámci kterého byla zjištěna aktuální absorbční kapacita území a připravenost realizace projektů. c) původně plánované projekty nebylo možno realizovat z důvodu nerealizace plánovaného předcházejícího projektu a u druhého projektu došlo ke změně vedení společnosti, která má jiné vize, které není možné podpořit. V důsledku toho byly hodnoty vynulovány s tím, že původní cílová hodnota Počet nových podniků, které dostávají podporu byla stanovena ve výšši 1 podnik. Tato změna byla komunitně projednána v území MAS ŽR a schválena Valnou hromadou MAS ŽR 14.11.2019.
G45: 1 03 00 | H45: Soukromé investice odpovídající veřejné podpoře podniků (granty) | I45: Eur | J45: výstupu | K45: 0 | L45: 2014-01-01 | M45: 0 | N45: 2023-12-31 | O45: xxx | P45: Cílová hodnota indikátoru byla stanovena na 218 181 Eur veřejné podpory podniků. Tato částka je odvislá z celkové alokované částky na dané opatření. Hodnota výstupového indikátoru vychází z celkové způsobilé částky alokované na dané opatření. Z této částky odpovídá soukromá investice 5% z celkových způsobilých výdajů. A tato částka byla přepočtena kurzem 27,50 Kč (kurz stanoven ŘO), tj 218 181 Euro | Q45: K datu 14.11.2019 došlo ke zrušení tohoto indikátoru z důvodu odebrání opatření Rozvoj sociálního podnikání z PR IROP z důvodu a) zrušení daného opatření a přesunu finančních prostředků na OP 1 Bezpečná a dostupná doprava b) nezájmu realizace projektů pro danou aktivitu, kdy daná skutečnost byla zjištěna v rámci Střednědobého hodnocení SCLLD MAS ŽR, v rámci kterého byla zjištěna aktuální absorbční kapacita území a připravenost realizace projektů. c) původně plánované projekty nebylo možno realizovat z důvodu nerealizace plánovaného předcházejícího projektu a u druhého projektu došlo ke změně vedení společnosti, která má jiné vize, které není možné podpořit. V důsledku toho byly hodnoty vynulovány s tím, že původní cílová hodnotaSoukromé investice odpovídající veřejné podpoře podniků (granty) byla stanovena ve výšši 218 181 Eur. Tato změna byla komunitně projednána v území MAS ŽR a schválena Valnou hromadou MAS ŽR 14.11.2019.
G46: 1 04 03 | H46: Zvýšení zaměstnanosti v podporovaných podnicích se zaměřením na znevýhodněné skupiny | I46: FTE | J46: výstupu | K46: 0 | L46: 2014-01-01 | M46: 0 | N46: 2023-12-31 | O46: xxx | P46: Hodnota indikátoru byla získána výpočtem: 1/3 z hodnoty indikátoru 1 04 00. Předpokládané náklady na vytvoření 1 FTE (jednoho plného pracovního úvazku) je 400 000,- Kč | Q46: K datu 14.11.2019 došlo ke zrušení tohoto indikátoru z důvodu odebrání opatření Rozvoj sociálního podnikání z PR IROP z důvodu a) zrušení daného opatření a přesunu finančních prostředků na OP 1 Bezpečná a dostupná doprava b) nezájmu realizace projektů pro danou aktivitu, kdy daná skutečnost byla zjištěna v rámci Střednědobého hodnocení SCLLD MAS ŽR, v rámci kterého byla zjištěna aktuální absorbční kapacita území a připravenost realizace projektů. c) původně plánované porjekty nebylo možno realizovat z důvodu nerealizace plánovaného předcházejícího projektu a u druhého projektu došlo ke změně vedení společnosti, která má jiné vize, které není možné podpořit. V důsledku toho byly hodnoty vynulovány s tím, že původní cílová hodnota Zvýšení zaměstnanosti v podporovaných podnicích se zaměřením na zvýhodněné skupiny byla stanovena ve výšši 5 FTE. Tato změna byla komunitně projednána a v území MAS ŽR a schválena Valnou hromadou MAS ŽR 14.11.2019.
B47: 3.4.2. Vzděláváním k zaměstnanosti | C47: OP ZAM | D47: 2 | E47: 3 | F47: 2.3. | G47: 6 00 00 | H47: Celkový počet účastníků | I47: osoby | J47: výstupu | K47: 0 | L47: 2014-01-01 | M47: 27 | N47: 2023-12-31 | O47: xxx | P47: Hodnota indikátoru byla stanovena s ohledem na průzkum území s ohledem na absorpční kapacitu Způsob výpočtu: Na opatření OPZ/O2 bylo přiděleno cca 20 % z alokace, průměrná cena na účastníka byla stanovena na cca 82 tis. Kč (s ohledem na doporučení ŘO), výsledná hodnota indikátoru je tedy 27 účastníků. Na základě zmapování potřeb území se přepokládá realizace následujících aktivit, které budou zaměřeny na cílové skupiny: - Rekvalifikace a další profesní vzdělávání – např. projekt Společnosti přátel Železných hor, z.s. ve spolupráci s Univerzitou Hradec Králové zaměřený na získání kvalifikace v oblasti geologoie a chráněného území se získáním kvalifikace průvodce v Národním geoparku Železné hory a v Cráněné krajiné oblasti Železné hory. V rámci získání kvalifikace, proběhnou i praktické zkoušky v území – počet osob 10 - Postupné zaměstnávání osob - podpora projektů zaměřených na osoby dlouhodobě nezaměstnané, ohrožené sociálním vyloučením a sociálně vyloučeným. Podpořena bude komplexsxsní práce s cílovou skupinou a jejím zapojením na trh práce. Aktivity povedou k získání pracovních návyků a zkušeností. Vzniknou pracovní místa na zkoušku, veřejně prospěšné práce, placené odborné praxe a stáže apod. Dané projekty vzniknou v rámci konzultace s ÚP ČR – počet osob 10 - Zvyšování uplatnitelnosti osob ohrožených sociálním vyloučením nebo osob sociálně vyloučených ve společnosti a na trhu práce. Realizace projektu, který povede k zvýšení motivace cílové skupiny k nalezení zaměstnání a jeho udržení. V rámci projektu budou realizovány rozvoj základních kompetencí za účelem snazšího uplatnění na trhu práce (jazykové vzdělávání, PC kurzy, rozvoj finanční gramotnosti, apod.). Aktivity zaměřené na zvýšení orientace osob v požadavcích trhu práce a realizace poradenských činností a programů, jejichž cílem je zjišťování osobnostních a kvalifikačních předpokladů osob pro volbu povolání (kariérové poradenství), pro zprostředkování vhodného zaměstnání – počet osob 7 | Q47: xxx
G48: 51105 | H48: Počet zaměstnavatelů, kteří podporují flexibilní formy práce | I48: podniky | J48: výstupu | K48: 0 | L48: 2014-01-01 | M48: 2 | N48: 2023-12-31 | O48: xxx | P48: Hodnota byla stanovena na základě průzkumu území s ohledem na absorpční kapacitu, včetně zásobníku projektů území a s přihlédnutím k indikátoru 6000. V rámci analýzy území byly zjištěny potřeby území, které ukázali, požadavky na realizaci daného opatření. K přihlédnutí na výši alokované částky se předpokládá podpora 2 podniky. | Q48: xxx
G49: 5 01 30 | H49: Počet osob pracujících v rámci flexibilních forem práce | I49: osoby | J49: výsledku | K49: 0 | L49: 2013 | M49: 7 | N49: 2023-12-31 | O49: xxx | P49: Hodnota indikátoru byla stanovena s ohledem na průzkum území s ohledem na absorpční kapacitu, počet projektů a indikátor 60000. | Q49: xxx
G50: 6 26 00 | H50: Účastníci, kteří získali kvalifikaci po ukončení své účasti | I50: osoby | J50: výsledku | K50: 0 | L50: 2013 | M50: 20 | N50: 2023-12-31 | O50: xxx | P50: Hodnota indikátoru byla stanovena s ohledem na průzkum území s ohledem na absorpční kapacitu, počet projektů a indikátor 60000. Hodnota indikátoru vychází z počtu účastníku v indikátoru se zohledněním, že všichni účastníci nezískají potvrzení o kvalifikaci o ukončení účasti na ESF projektu. Potvrzení o účasti bude uděleno na základě formálního prověření zanlostí, které ukáže, že účastník získal kvalifikaci, dle předem nastavených standardů. | Q50: xxx
G51: 6 28 00 | H51: Znevýhodnění účastníci, kteří po ukončení své účasti hledají zaměstnání, jsou v procesu vzdělávání/odborné přípravy, rozšiřují si kvalifikaci nebo jsou zaměstnaní, a to i OSVČ | I51: osoby | J51: výsledku | K51: 0 | L51: 2013 | M51: 2 | N51: 2023-12-31 | O51: xxx | P51: Hodnota indikátoru byla stanovena s ohledem na průzkum území s ohledem na absorpční kapacitu a výši indikátoru 60000 Způsob výpočtu: Hodnota indikátoru vychází z počtu účastníku v indikátoru 60000 a je provázána s hodnotami indikátoru 62900, 63200, 62700 a 63100 se zohledněním povinnosti vykazovat pouze osoby jednoznačně identifikované a skutečností, že se projekty budou zabývat i osobami znevýhodněnými na trhu práce, proto lze očekávat sníženou úspěšnost nalezení zaměstnání do 4 týdnů i po úspěšném absolvování projektu. | Q51: xxx
G52: 6 29 00 | H52: Účastníci zaměstnáni 6 měsíců po ukončení své účasti, včetně OSVČ | I52: osoby | J52: výsledku | K52: 0 | L52: 2013 | M52: 8 | N52: 2023-12-31 | O52: xxx | P52: Hodnota indikátoru byla stanovena s ohledem na průzkum území s ohledem na absorpční kapacitu a výši indikátoru 60000 Způsob výpočtu: Hodnota indikátoru vychází z počtu účastníku v indikátoru 60000 a je provázána s hodnotami indikátoru 62800, 63200, 62700 a 63100 se zohledněním povinnosti vykazovat pouze osoby jednoznačně identifikované a skutečností, že se projekty budou zabývat i osobami znevýhodněnými na trhu práce, proto lze očekávat sníženou úspěšnost nalezení zaměstnání i po úspěšném absolvování projektu. | Q52: xxx
G53: 6 31 00 | H53: Účastníci ve věku nad 54 let zaměstnaní 6 měsíců po ukončení své účasti, včetně OSVČ | I53: osoby | J53: výsledku | K53: 0 | L53: 2013 | M53: 2 | N53: 2023-12-31 | O53: xxx | P53: Hodnota indikátoru byla stanovena s ohledem na průzkum území s ohledem na absorpční kapacitu a výši indikátoru 60000 Způsob výpočtu: Hodnota indikátoru vychází z počtu účastníku v indikátoru 60000 a je provázána s hodnotami indikátoru 62900, 63200, 62700 a 62800 se zohledněním povinnosti vykazovat pouze osoby jednoznačně identifikované a skutečností, že se projekty budou zabývat i osobami znevýhodněnými na trhu práce, proto lze očekávat sníženou úspěšnost nalezení zaměstnání i po úspěšném absolvování projektu. | Q53: xxx
G54: 6 32 00 | H54: Znevýhodnění účastníci zaměstnáni 6 měsíců po ukončení své účasti, včetně OSVČ | I54: osoby | J54: výsledku | K54: 0 | L54: 2013 | M54: 5 | N54: 2023-12-31 | O54: xxx | P54: Hodnota indikátoru byla stanovena s ohledem na průzkum území s ohledem na absorpční kapacitu a výši indikátoru 60000 Způsob výpočtu: Hodnota indikátoru vychází z počtu účastníku v indikátoru 60000 a je provázána s hodnotami indikátoru 62900, 62800, 62700 a 63100 se zohledněním povinnosti vykazovat pouze osoby jednoznačně identifikované a skutečností, že se projekty budou zabývat i osobami znevýhodněnými na trhu práce, proto lze očekávat sníženou úspěšnost nalezení zaměstnání i po úspěšném absolvování projektu. | Q54: xxx
G55: 6 27 00 | H55: Účastníci zaměstnaní po ukončení své účasti, včetně OSVČ | I55: osoby | J55: výsledek | K55: 0 | L55: 2014-01-01 | M55: 4 | N55: 2023-12-31 | O55: xxx | P55: Hodnota stanovena na základě průzkumu území s ohledem na absorpční kapacitu a indikátor 60000. Způsob výpočtu: Hodnota indikátoru vychází z počtu účastníku v indikátoru 60000 a je provázána s hodnotami indikátoru 62600, 62800, 62900 se zohledněním, že v území je spíše nižší nezaměstnanost a opatření tedy budou využívat spíše osoby pečující o malé děti než osoby vracející se na trh pro mateřské/rodičovské dovolené. | Q55: xxx
B56: 3.4.3. Sociální podnikání | C56: OP ZAM | D56: 2 | E56: 3 | F56: 2.3. | G56: 6 00 00 | H56: Celkový počet účastníků | I56: osoby | J56: výstup | K56: 0 | L56: 2014-01-01 | M56: 6 | N56: 2023-12-31 | O56: xxx | P56: dle průzkumu území a indikátoru 10213 a 10212 očekávaného počtu podpořených podniků (viz indikátor 10213 a 10212). Způsob výpočtu: Na toto opatření bylo přiděleno cca 30 % z alokace s tím, že je v opatření počítáno s vytvořením pracovních míst a dalšími podporovanými aktivitami. Přibližně polovina nákladů na projekty z tohoto opatření je plánována na mzdy vč. odvodů zaměstnavatele a druhá polovina na další podporované činnosti v rámci sociálního podnikání. Průměrné náklady na účastníka jsou tedy cca 350 tis. Kč na 2 roky (mzdy vč. odvodů). | Q56: xxx
G57: 1 02 13 | H57: Počet sociálních podniků vzniklých díky podpoře | I57: organiazce | J57: výstup | K57: 0 | L57: 2014-01-01 | M57: 1 | N57: 2023-12-31 | O57: xxx | P57: Hodnota stanovena na základě průzkumu území průzkum území s ohledem na absorpční kapacitu Způsob výpočtu: Na toto opatření bylo přiděleno dle průzkumu území a absorpční kapacitě cca 30 % alokace. Hodnota byla stanovena jako optimální v návaznosti na přidělený objem finančních prostředků a množství vytvořených pracovních míst (cca 3) a dalších podporovaných aktivit. | Q57: xxx
G58: 1 02 12 | H58: Počet podpořených již existujících sociálních podniků | I58: organiazce | J58: výstup | K58: 0 | L58: 2014-01-01 | M58: 1 | N58: 2023-12-31 | O58: xxx | P58: Hodnota stanovena na základě průzkumu území průzkum území s ohledem na absorpční kapacitu Způsob výpočtu: Na toto opatření bylo přiděleno dle průzkumu území a absorpční kapacitě cca 30 % alokace. Hodnota byla stanovena jako optimální v návaznosti na přidělený objem finančních prostředků a množství vytvořených pracovních míst (cca 3) a dalších podporovaných aktivit. | Q58: xxx
G59: 50105 | H59: Počet zaměstnavatelů, kteří podporují flexibilní formy práce | I59: Podniky | J59: výstup | K59: 0 | L59: 2014-01-01 | M59: 2 | N59: 2023-12-31 | O59: xxx | P59: Hodnota stanovena na základě průzkumu území průzkum území s ohledem na absorpční kapacitu, včetně zásobníku projektů území. Způsob výpočtu: V rámci analýzy území byly zjištěny potřeby území, které ukázali, požadavky na realizaci daného opatření. K přihlédnutí na váši alokované částky se předpokládá podpora 2 podniků. | Q59: xxx
G60: 1 02 11 | H60: Počet sociálních podniků vzniklých díky podpoře, které fungují i po ukončení podpory | I60: organizace | J60: výsledku | K60: 0 | L60: 2013 | M60: 2 | N60: 2023-12-31 | O60: xxx | P60: Dle očekávaného počtu podpořených podniků (viz indikátor 10213 a 10212) | Q60: xxx
G61: 50130 | H61: Počet osob pracujících v rámci flexibilních forem práce | I61: Osoby | J61: výsledku | K61: 0 | L61: 2014-01-01 | M61: 3 | N61: 2023-12-31 | O61: xxx | P61: Hodnota indikátoru byla stanovena s ohledem na průzkum území s ohledem na absorbční kapacitu, počet projektů a indikátoru 6000 MI byl zvolen na základě skutečnosti, že na území MAS působí v současné době 1 sociální podnik a dle průzkumu území 1 podnik v novém období vznikne. Předpokládá se, že 4 osoby budou pracovat flexibilní formou práce | Q61: xxx
G62: 62600 | H62: Účastníci, kteří získali kvalifikaci po ukončení své účasti | I62: Osoby | J62: výsledku | K62: 0 | L62: 2014-01-01 | M62: 2 | N62: 2023-12-31 | O62: xxx | P62: Hodnota indikátoru byla stanovena s ohledem na průzkum území s ohledem na absorpční kapacitu, počet projektů a indikátor 60000. MI byl zvolen na základě skutečnosti, že na území MAS působí v současné době 1 sociální podnik a dle průzkumu území 1 podnik v novém období vznikne. Předpokládá se, že v průběhu realizace získají 2 osoby kvalifikaci | Q62: xxx
G63: 62800 | H63: Znevýhodnění účastníci, kteří po ukončení své účasti hledají zaměstnání, jsou v procesu vzdělávání/odborné přípravy, rozšiřují si kvalifikaci nebo jsou zaměstnaní, a to i OSVČ | I63: Osoby | J63: výsledku | K63: 0 | L63: 2014-01-01 | M63: 2 | N63: 2023-12-31 | O63: xxx | P63: Hodnota indikátoru byla stanovena s ohledem na průzkum území s ohledem na absorpční kapacitu a výši indikátoru 60000 Způsob výpočtu: MI byl zvolen na základě skutečnosti, že na území MAS působí v současné době 1 sociální podnik a dle průzkumu území 1 podnik v novém období vznikne. Na základě kvalifikovaného odhadu a s ohledem na výši způsobilých výdajů pro oatření s předpokládá podpora dvou sociálních podniků, který zaměstná min. 2 znevýhodněné osoby. | Q63: xxx
G64: 62900 | H64: Účastníci zaměstnáni 6 měsíců po ukončení své účasti, včetně OSVČ | I64: Osoby | J64: výsledku | K64: 0 | L64: 2014-01-01 | M64: 4 | N64: 2023-12-31 | O64: xxx | P64: Hodnota indikátoru byla stanovena s ohledem na průzkum území s ohledem na absorpční kapacitu a výši indikátoru 60000 Způsob výpočtu: MI byl zvolen na základě skutečnosti, že na území MAS působí v současné době 1 sociální podnik a dle průzkumu území 1 podnik v novém období vznikne. Na základě kvalifikovaného odhadu a s ohledem na výši způsobilých výdajů pro oatření s předpokládá podpora dvou sociálních podniků, jehož účastníci budou zaměstnání 6 měsíců po ukončení své účasti na projektu, včetně OSVČ. | Q64: xxx
G65: 63100 | H65: Účastníci ve věku nad 54 let zaměstnaní 6 měsíců po ukončení své účasti, včetně OSVČ | I65: Osoby | J65: výsledku | K65: 0 | L65: 2014-01-01 | M65: 1 | N65: 2023-12-31 | O65: xxx | P65: Hodnota indikátoru byla stanovena s ohledem na průzkum území s ohledem na absorpční kapacitu a výši indikátoru 60000 Způsob výpočtu: MI byl zvolen na základě skutečnosti, že na území MAS působí v současné době 1 sociální podnik a dle průzkumu území 1 podnik v novém období vznikne. Na základě kvalifikovaného odhadu a s ohledem na výši způsobilých výdajů pro opatření s předpokládá podpora dvou sociálních podniků, jehož účastníci vě věku 54 let budou zaměstnání 6 měsíců po ukončení své účasti na projektu, včetně OSVČ. | Q65: xxx
G66: 63200 | H66: Znevýhodnění účastníci zaměstnáni 6 měsíců po ukončení své účasti, včetně OSVČ | I66: Osoby | J66: výsledku | K66: 0 | L66: 2014-01-01 | M66: 3 | N66: 2023-12-31 | O66: xxx | P66: Hodnota indikátoru byla stanovena s ohledem na průzkum území s ohledem na absorpční kapacitu a výši indikátoru 60000 Způsob výpočtu: MI byl zvolen na základě skutečnosti, že na území MAS působí v současné době 1 sociální podnik a dle průzkumu území 1 podnik v novém období vznikne. Na základě kvalifikovaného odhadu a s ohledem na výši způsobilých výdajů pro opatření s předpokládá podpora dvou sociálních podniků, jehož znevýhodnění účastníci budou zaměstnání 6 měsíců po ukončení své účasti na projektu, včetně OSVČ. | Q66: xxx
G67: 62700 | H67: Účastníci zaměstnaní po ukončení své účasti, včetně OSVČ | I67: Osoby | J67: výsledku | K67: 0 | L67: 2014-01-01 | M67: 5 | N67: 2023-12-31 | O67: xxx | P67: Hodnota stanovena na základě průzkumu území s ohledem na absorpční kapacitu a indikátor 60000. Způsob výpočtu: MI byl zvolen na základě skutečnosti, že na území MAS působí v současné době 1 sociální podnik a dle průzkumu území 1 podnik v novém období vznikne. Na základě kvalifikovaného odhadu a s ohledem na výši způsobilých výdajů pro opatření s předpokládá podpora dvou sociálních podniků, jehož účastníci budou zaměstnání po ukončení své účasti na projektu, včetně OSVČ. | Q67: xxx
B68: 3.4.4. Kvalita a dostupnost sociálních služeb | C68: IROP | D68: 4 | E68: 9d | F68: 4.1. | G68: 6 75 10 | H68: Kapacita služeb a sociální práce | I68: klienti | J68: výsledku | K68: 18 | L68: 2014-01-01 | M68: 35 | N68: 2023-12-31 | O68: xxx | P68: Výchozí hodnota indikátoru vychází z průzkumu území - do indikátoru nebyly zahrnuty pobytové sociální služby, protože se nejedná o služby dle definice indikátoru a služby poskytovatelů, jejichž sídlo a provozovna se nachází mimo region; v hodnotě se nacházejí služby jedné neziskové organizace, která působí v dané oblasti a jejíž činnost je v souladu se Střednědobým plánem Pardubického kraje .Organizace poskytuje 2 sociální služby - 1. Nízkoprahové zařízení pro děti a mládež má max. okamžitou kapacitu 15 klientů - 2. Sociálně aktivizační služby pro rodiny s dětmi má max. okamžitou kapacitu 3 klienty Cílová hodnota indikátoru byla stanovena na základě požadavků území, zásobníku projekt a absorpční kapacity. Předpokládá se rozšíření na celkové 3 služby s okamžitou kapacitou 40 osob (současná služba č.1. se rozšíří na 22 klientů, služba č. 2 se rozšří na 8 klientů a vznikne 1 nová služba, která bude mít okamžitou kapacitu 10) Navýšení se tak maximální okamžitá kapacita o 22 klientů. | Q68: K datu 14.11.2019 došlo u tohoto indikátoru k finalizaci cílové hodnoty. Cílová hodnota tohoto indikátoru byla snížena ze 40 na 35 klientů, z důvodu a) skutečné realizace projektů, které vyčerpaly plánovanou alokaci na dané opatření b) realiazce 2 projektů proběhla ve vyšších částkách z důvodu nárustu cen za stavební práce c) realizované projekty mají oproti původně plánované nižší kapacitu - 1. Nízkoprahové zařízení pro děti a mládež má max. okamžitou kapacitu 5 klientů - 1. Centrum denních služeb, které má max. okamžitou kapacitu 12 klientů d) zjištěné absorbční kapacity území v rámci Střednědobého hodnocení, kdy nebyl zjištěn žádný další projektový záměr k realizaci Na základě realizace dvou výšše zmíněných projektů dochází k navýšení maximální okamžité kapacity o 17 klientů.. Tato změna byla komunitně projednána a v území MAS ŽR a schválena Valnou hromadou MAS ŽR 14.11.2019.
G69: 5 53 20 | H69: Průměrný počet osob využívající sociální bydlení | I69: osoby/rok | J69: výsledku | K69: 142 | L69: 2014-01-01 | M69: 142 | N69: 2023-12-31 | O69: xxx | P69: Hodnota výsledkového indikátoru, a to jak výchozí tak cílová vychází ze socio-ekonomické analýzy a zjištění potřeb území (zásobníku projektů) a v cílové hodnotě se odráží potřeby území, dle zásobníku projektů. Výchozí hodnota je stanovena k 1.1.2014 a cílová k 31.12.2023. Výchozí hodnota indikátoru byla vypočítána na základě sečtení průměrných obložností lůžek v území před realizací projektů. Cílová hodnota indikátoru byla vypočítána v návaznosti na výchozí hodnotu indikátoru 55320 a indikátor 55310 (počet plánovaných lůžek – 20 lůžek) a dle počtu osob na jedno lůžko (tj. 0,8). V rámci realizace opatření dojde k navýšení o 16 osob/rok | Q69: K datu 14.11.2019 došlo u tohoto indikátoru k finalizaci cílové hodnoty. Cílová hodnota tohoto indikátoru byla snížena ze 158 na 142 (což je výchozí hodnota) osob/rok, z důvodu a) zjištěné absorbční kapacity území v rámci Střednědobého hodnocení, kdy nebyl zjištěn žádný další projektový záměr k realizaci b) plánované projekty byly realizovány buď napřímo z IROP (vyšší možnost finančních prostředků) nebo z národních zdrojů MMR c) veškeré fiannční prostředky daného opatření jsou vyčerpány na základě podpory sociálních služeb. Tato změna byla komunitně projednána v území MAS ŽR a schválena Valnou hromadou MAS ŽR 14.11.2019.
G70: 5 53 10 | H70: Nárust kapacity sociálních bytů | I70: lůžka | J70: výsledku | K70: 178 | L70: 2014-01-01 | M70: 178 | N70: 2023-12-31 | O70: xxx | P70: Hodnoty výsledkových indikátoru, a to jak výchozí tak cílová vychází ze socio-ekonomické analýzy území, zjištění potřeb území a alokované částky. Výchozí hodnota indikátoru vychází z průzkumu počtu lůžek sociálních bytů před realizací opatření strategie (89 bytových jednotek průměrně po 2 lůžkách). Cílová hodnota je stanovena s ohledem na indikátor 55301, průměrný plánovaný počet lůžek na jeden sociální byt je 2 (tj 10 soc. bytů po 2 lůžkách), tj. nárůst kapacity sociálních bytů o 20 klientů. Cílová hodnota indikátoru je tedy 198. | Q70: K datu 14.11.2019 došlo u tohoto indikátoru k finalizaci cílové hodnoty. Cílová hodnota tohoto indikátoru byla snížena z 198 na 178 bytových jednotek, (což je původní výchozí hodnota indikátoru) z důvodu a) zjištěné absorbční kapacity území v rámci Střednědobého hodnocení, kdy nebyl zjištěn žádný další projektový záměr k realizaci b) plánované projekty byly realizovány buď napřímo z IROP (vyšší možnost finančních prostředků) nebo z národních zdrojů MMR c) veškeré fiannční prostředky daného opatření jsou vyčerpány na základě podpory sociálních služeb. Tato změna byla komunitně projednána a v území MAS ŽR a schválena Valnou hromadou MAS ŽR 14.11.2019.
G71: 5 53 01 | H71: Počet podpořených bytů pro sociální bydlení | I71: bytové jednotky | J71: výstupu | K71: 0 | L71: 2014-01-01 | M71: 0 | N71: 2023-12-31 | O71: 0 | P71: Cílová hodnota indikátoru (která bude dosažena k 31.12.2023) byla stanovena dle zásobníku projektů na 10 bytových jednotek, při čemž hodnota mid-therm jsou 2 bytové jednotky. Tento požadavek vychází ze šetření v území a ze zásobníku projektů s ohledem na absorpční kapacitu, alokovanou částku a průměrné ceny. Potřeba realizace indikátoru vychází ze socioekonomické analýzy, kap. 2.1.4. Vybaven. obcí, služby a život v obcích, str. 33 a 34. Průměrná cena byla stanovena na základě srovnání cen obdobných projektů a činí 400 000 Kč/ bytovou jednotku, JCI 400 000 Kč. Na bytovou jednotku připadá 2 lůžka, tj. 10 bytových jednotek po 2 lůžkách V rámci strategie se předpokládají především rekonstrukce bytových jednotek. | Q71: K datu 14.11.2019 došlo u tohoto indikátoru k finalizaci cílové hodnoty. Cílová hodnota tohoto indikátoru byla snížena z 10 na 0 s midterm hodnota z 2 na 0 bytových jednotek, z důvodu a) zjištěné absorbční kapacity území v rámci Střednědobého hodnocení, kdy nebyl zjištěn žádný další projektový záměr k realizaci b) plánované projekty byly realizovány buď napřímo z IROP (vyšší možnost finančních prostředků) nebo z národních zdrojů MMR c) veškeré fiannční prostředky daného opatření jsou vyčerpány na základě podpory sociálních služeb. Tato změna byla komunitně projednána a v území MAS ŽR a schválena Valnou hromadou MAS ŽR 14.11.2019.
G72: 5 54 01 | H72: Počet podpořených zázemí pro služby a sociální práci | I72: zařízení | J72: výstupu | K72: 0 | L72: 2014-01-01 | M72: 2 | N72: 2023-12-31 | O72: xxx | P72: Cílová hodnota indikátoru byla stanovena ve výši 3 zařízení pro služby a sociální práci. Tento požadavek vychází ze šetření v území a ze zásobníku projektů. Potřeba realizace indikátoru vychází ze socioekonomické analýzy, kap. kap. 2.1.4., str. 33 a 34. Průměrné ceny byly stanoveny na základě cen obdobných projektů a na základě analýzy potencionálních dodavatelů. Průměrná cena na jedno zázemí komunitního charakteru činí 1 mil. Kč. Při této ceně je zázemí zbudováno min. pro 15 osob u zázemí komunitního charakteru, které poskytuje sociální služby dle zákona 108/2006 Sb. Průměrná cena 1 nízkokapacitního zázemí pro zajištění individuální péče činí 800 tis. Kč (okamžitá současná kapacita je 15 klientů pro cílovou skupinu dětí 10 – 15 let, je plánováno rozšíření o další cílovou skupinu mládež 15 – 18 let, která bude mít kapacitu 7 osob, celková okamžitá kapacita tedy vzroste na 22 klientů). Průměrná cena zázemí poskytující 1 sociálně akviziční službu pro rodiny, dle zákona 108/2006 Sb. 1 mil. Kč/zázemí (okamžitá současná kapacita 3 osoby – terénní služby se rozšíří o ambulantní služby, která bude mít okamžitou kapacitu 8 osob, celkem bude službu tedy využívat průměrně v jeden okamžik až 11 osob)). Největší zájem v území je o zázemí komunitního charakteru. | Q72: K datu 14.11.2019 došlo u tohoto indikátoru k finalizaci cílové hodnoty. Cílová hodnota tohoto indikátoru byla snížena ze 3 na 2 zařízení, z důvodu a) skutečné realizace 2 projektů, které vyčerpaly plánovanou alokaci na dané opatření b) realiazce 2 projektů proběhla ve vyšších částkách z důvodu nárustu cen za stavební práce c) původně plánovaný třetí projekt nebyl z důvod vývoje stávající situace v podniku realizován d) zjištěné absorbční kapacity území v rámci Střednědobého hodnocení, kdy nebyl zjištěn žádný další projektový záměr k realizaci. V současné době území nedisponuje dalšími možnými projekty na podporu sociálních služeb z finančních prostředků SCLLD. Finanční alokace plánovaná na dané opatření je však díky podpoře dvou nových služeb vyčerpána, v rámci které je jedno kompletně nově vybudováno. Průměrná cena za měrnou jednotku byla stanovena na 3 000 000 Kč. Tato změna byla komunitně projednána v území MAS ŽR a schválena Valnou hromadou MAS ŽR 14.11.2019.
G73: 5 54 02 | H73: Počet poskytovaných druhů sociálních služeb | I73: služby | J73: výstupu | K73: 0 | L73: 2014-01-01 | M73: 2 | N73: 2023-12-31 | O73: xxx | P73: Cílová hodnota indikátoru byla stanovena na základě průzkumu území s ohledem na absorpční kapacitu, alokovanou částku a druhy služeb možných projektů. V rámci projektu se předpokládá registrace 3 druhy sociálních služeb, které jsou či budou po ukončení projektu zaregistrovány podle zákona č. 108/206 Sb. Každý druh soc. služby podpořený z projektu se započítává pouze 1x. | Q73: K datu 14.11.2019 došlo u tohoto indikátoru k finalizaci cílové hodnoty. Cílová hodnota tohoto indikátoru byla snížena ze 3 na 2 služby, z důvodu a) skutečné realizace 2 projektů, které vyčerpaly plánovanou alokaci na dané opatření b) realiazce 2 projektů proběhla ve vyšších částkách z důvodu nárustu cen za stavební práce c) původně plánovaný třetí projekt (3. služba) nebyl z důvod vývoje stávající situace v podniku realizován d) zjištěné absorbční kapacita území v rámci Střednědobého hodnocení, kdy nebyl zjištěn žádný další projektový záměr k realizaci. Tato změna byla komunitně projednána v území MAS ŽR a schválena Valnou hromadou MAS ŽR 14.11.2019.
B74: 3.4.5. Prorodinná opatření | C74: OP ZAM | D74: 2 | E74: 3 | F74: 2.3. | G74: 6 00 00 | H74: Celkový počet účastníků | I74: osoby | J74: výstupu | K74: 0 | L74: 2014-01-01 | M74: 65 | N74: 2023-12-31 | O74: xxx | P74: Hodnota indikátoru byla stanovena na základě průzkum území s ohledem na absorpční kapacitu Způsob výpočtu: Na opatření bylo přiděleno cca 25 % alokace, průměrná cena na osobu (1 rodič) byla stanovena na cca 69 tis. Kč (s ohledem na doporučení ŘO), výsledná hodnota indikátoru je tedy 70 účastníků. V rámci realizace opatření se přepokládá podpora zařízení péče o děti: - Příměstské tábory – kapacita příměstského tábora se předpokládá 15 osob, s přihlédnutím na délku realizace proejktu 3 roky a s přihlédnutím na počet osob, u kterých podpora překročí bagatelní hodnotu je plánován počet osob zasažených projektem 29 osob - 2 projekty budou na vznik dětských skupin - Dětská skupina zasáhne cca 9 dětí v rámci jednoho projektu (kapacita skupiny se předpokládá 6 dětí, ale s přihlédnutím na realizaci projektu 3 roky se počítá s obměnou části dětí), tj. 18 dětí na 2 dětské skupiny - 1 projekt podporu zařízení doplňující chybějící kapacitu (školní družina) kapacita zařízení doplňující chybějící kapacitu bude 10 dětí, s přihlédnutím na délku realizace projektu 3 roky a obměnu dětí se předpokládá, že projekt zasáhne 17 osob Při průměrném počtu 1,6 dítěte na 1 rodiče se projekt bude týkat cca 40 rodičů na 4 projekty. Na základě navýšení alokace na opatření, tak aby mohl být podpořen 1 projekt, na který má MAS absorpční kapacitu, byl indikátor navýšen o 25 účastníků. Bude se jednat o 1 projekt na podporu zařízení doplňující chybějící kapacitu (školní družina) a příměstský tábor, s kapacitou zařízení 15 dětí, s přihlédnutím na délku realizace projektu 3 roky a obměnu dětí se předpokládá, že projekt zasáhne 25 osob. Celkově bude indikátor tedy 65 účastníků na realizované projekty. | Q74: xxx
G75: 5 00 01 | H75: Kapacita podpořených zařízení péče o děti nebo vzdělávacích zařízení | I75: osoby | J75: výstupu | K75: 0 | L75: 2014-01-01 | M75: 52 | N75: 2023-12-31 | O75: xxx | P75: Hodnota indikátoru byla stanovena na základě průzkum území s ohledem na absorpční kapacitu, počet účastníků (indikátor 60000) a počet předpokládaných projektů (4 projekty na zařízení péče o děti nebo vzdělávací zařízení) Způsob výpočtu: V rámci realizace oaptření se přepokládá podpora 4 projektů s následujícíc kapacitou: - 1 projekt na příměstské tábory - kapacita tábora se předpokládá 15 osob - 2 projekty budou na vznik dětských skupin - kapacita skupiny se předpokládá 6 dětí, tj. 12 dětí na dvě skupiny - 1 projekt na podporu zařízení doplňující chybějící kapacitu (školní družina) - kapacitu bude 10 dětí. Na základě navýšení alokace na opatření, tak aby mohl být podpořen 1 projekt, na který má MAS absorpční kapacitu, byl indikátor navýšen o 15 účastníků. Bude se jednat o 1 projekt na podporu zařízení doplňující chybějící kapacitu (školní družina) a příměstský tábor, s kapacitou zařízení 15 dětí, s přihlédnutím na délku realizace projektu 3 roky a obměnu dětí se předpokládá, že projekt zasáhne 25 osob. Celkově bude indikátor tedy 52 osob na realizované projekty. | Q75: xxx
G76: 5 01 00 | H76: Počet podpořených zařízení péče o děti předškolního věku | I76: zařízení | J76: výstupu | K76: 0 | L76: 2014-01-01 | M76: 2 | N76: 2023-12-31 | O76: xxx | P76: Hodnota indikátoru byla stanovena na základě průzkum území s ohledem na absorpční kapacitu. V rámci realizace opatření je plánováno podpořit 2 zařízení na dětské skupiny, 1 zařízení doplňující chybějící kapacitu (školní družina). | Q76: xxx
G77: 5 01 10 | H77: Počet osob využívajících zařízení péče o dětí předškolního věku | I77: osoby | J77: výsledku | K77: 0 | L77: 2013 | M77: 11 | N77: 2023-12-31 | O77: xxx | P77: Hodnota indikátoru byla stanovena na základě průzkum území s ohledem na absorpční kapacitu, počet účastníků (indikátor 60000) a Kapacitu podpořených zařízení péče o děti nebo vzdělávací zařízení (indikátor 50001) a počet předpokládaných projektů (2 projekty na zařízení péče o děti nebo vzdělávací zařízení – děské skupiny) Způsob výpočtu: Na opatření bylo přiděleno cca 25 % alokace, z toho se plánuje na podporu zařízení péče o děti předškolního věku. Dětská skupina zasáhne cca 9 dětí v rámci jednoho projektu (kapacita skupiny se předpokládá 6 dětí, ale s přihlédnutím na realizaci projektu 3 roky se počítá s obměnou části dětí), tj. 18 dětí na 2 dětské skupiny Při průměrném počtu 1,6 dítěte na 1 rodiče se projekt bude týkat cca 11 rodičů na 2 projekty. | Q77: xxx
G78: 5 01 20 | H78: Počet osob využívajících zařízení péče o dětí ve věku do 3 let | I78: osoby | J78: výsledku | K78: 0 | L78: 2013 | M78: 4 | N78: 2023-12-31 | O78: xxx | P78: Hodnota indikátoru byla stanovena na základě průzkum území s ohledem na absorpční kapacitu, počet účastníků (indikátor 60000) a Kapacitu podpořených zařízení péče o děti nebo vzdělávací zařízení (indikátor 50001) a počet předpokládaných projektů (2 projekty na zařízení péče o děti nebo vzdělávací zařízení – děské skupiny) Způsob výpočtu: Na opatření bylo přiděleno cca 25 % alokace. V rámi realizace opatření se plánuje podpora dětí ve věku do tří let, hlavně z důvodu plánovaného zákona, ze kterého vyplívá povinnost umístění dětí ve věku 2 let. Z tohoto dětské skupiny budou určeny i pro děti mladší než 3 roky. Předpokládá se umístění do dětských skupin dětí mladších 3 let v počtu 6 dětí. Při průměrném počtu 1,6 dítěte na 1 rodiče se projekt bude týkat cca 4 osob.. | Q78: xxx
G79: 62600 | H79: Účastníci, kteří získali kvalifikaci po ukončení své účasti | I79: Osoby | J79: výsledku | K79: 0 | L79: 2013 | M79: 4 | N79: 2023-12-31 | O79: xxx | P79: Hodnota indikátoru byla stanovena s ohledem na průzkum území s ohledem na absorpční kapacitu a na výši způsobilých výdajů pro opatření se předpokládá podpora 4 projektů zaměřených na péči o děti, v rámci kterých 4 účastníci získají kvalifikaci po ukončení své účasti | Q79: xxx
G80: 62800 | H80: Znevýhodnění účastníci, kteří po ukončení své účasti hledají zaměstnání, jsou v procesu vzdělávání/odborné přípravy, rozšiřují si kvalifikaci nebo jsou zaměstnaní, a to i OSVČ | I80: Osoby | J80: výsledku | K80: 0 | L80: 2013 | M80: 1 | N80: 2023-12-31 | O80: xxx | P80: Hodnota indikátoru byla stanovena s ohledem na průzkum území s ohledem na absorpční kapacitu a na výši způsobilých výdajů pro opatření se předpokládá podpora 4 projektů zaměřených na péči o děti, v rámci kterých, bude zaměstnán 1 znevýhodněný účastník. | Q80: xxx
G81: 62900 | H81: Účastníci zaměstnáni 6 měsíců po ukončení své účasti, včetně OSVČ | I81: Osoby | J81: výsledku | K81: 0 | L81: 2013 | M81: 4 | N81: 2023-12-31 | O81: xxx | P81: Hodnota indikátoru byla stanovena s ohledem na průzkum území s ohledem na absorpční kapacitu a na výši způsobilých výdajů pro opatření. Na základě kvalifikovaného odhadu a za předpokladu podpory 4 projektů zaměřených na péči o děti se předpokládá, že budou zaměstnáni 6 měsící po ukončení své účasti 4 osoby. | Q81: xxx
G82: 63100 | H82: Účastníci ve věku nad 54 let zaměstnaní 6 měsíců po ukončení své účasti, včetně OSVČ | I82: Osoby | J82: výsledku | K82: 0 | L82: 2013 | M82: 1 | N82: 2023-12-31 | O82: xxx | P82: Hodnota indikátoru byla stanovena s ohledem na průzkum území s ohledem na absorpční kapacitu a na výši způsobilých výdajů pro opatření. Na základě kvalifikovaného odhadu a za předpokladu podpory 4 projektů zaměřených na péči o děti se předpokládá, že bude 1 osoba ve věku nad 54 let zaměstnána 6 měsíců po ukončení své účasti. | Q82: xxx
G83: 63200 | H83: Znevýhodnění účastníci zaměstnáni 6 měsíců po ukončení své účasti, včetně OSVČ | I83: Osoby | J83: výsledku | K83: 0 | L83: 2013 | M83: 1 | N83: 2023-12-31 | O83: xxx | P83: Hodnota indikátoru byla stanovena s ohledem na průzkum území s ohledem na absorpční kapacitu a na výši způsobilých výdajů pro opatření. Na základě kvalifikovaného odhadu a za předpokladu podpory 4 projektů zaměřených na péči o děti se předpokládá, že bude 1 znevýhodněná osoba zaměstnána 6 měsíců po ukončení své účasti | Q83: xxx
G84: 62700 | H84: Účastníci zaměstnaní po ukončení své účasti, včetně OSVČ | I84: Osoby | J84: výsledku | K84: 0 | L84: 2013 | M84: 3 | N84: 2023-12-31 | O84: xxx | P84: Hodnota indikátoru byla stanovena s ohledem na průzkum území s ohledem na absorpční kapacitu a na výši způsobilých výdajů pro opatření se předpokládá podpora 4 projektů zaměřených na péči o děti, v rámci kterých, budou zaměstnány 3 osoby. | Q84: xxx
A85: SC 4 | B85: 4.1.1. Školy dostupné všem | C85: IROP | D85: 4 | E85: 9d | F85: 4.1. | G85: 5 00 30 | H85: Počet osob předčasně opouštějící vzdělávací systém | I85: % | J85: výsledku | K85: 5,4 | L85: 2013-12-31 | M85: 5 | N85: 2023-12-31 | O85: xxx | P85: Hodnoty výsledkových indikátoru, a to jak výchozí tak cílová byla převzata z IROP. Hodnota mid-therm není nastavena | Q85: xxx
G86: 5 00 20 | H86: Podíl tříletých dětí umístěných v předškolním zařízení | I86: % | J86: výsledku | K86: 77,3 | L86: 2013-12-31 | M86: 90.5 | N86: 2023-12-31 | O86: xxx | P86: Hodnoty výsledkových indikátoru, a to jak výchozí tak cílová byla převzata z IROP. Hodnota mid-therm není nastavena | Q86: xxx
G87: 5 00 00 | H87: Počet podpořených vzdělávacích zařízení | I87: zařízení | J87: výstupu | K87: 0 | L87: 2014-01-01 | M87: 11 | N87: 2023-12-31 | O87: 3 | P87: Cílová hodnota indikátoru byla stanovena ve výši 11 podpořených školských zařízení (5 MŠ - 4 klasická a 1 zařízení pro děti do 3 let, 4 ZŠ, 2 jiná vzdělávací zařízení), přičemž hodnota mid –term je 3 zařízení, která budou do roku 2018 zrealizovány a proplaceny (1 MŠ, 1 ZŠ a 1 jiné vzdělávací zařízení). Tento požadavek vychází z detailního šetření u školských zařízení a z analýz provedených v rámci projektu Systémová podpora rozvoje meziobecní spolupráce v ČR v rámci území správních obvodů obcí s rozšířenou působností pro jednotlivá ORP. Z daných analýz vyšel zásobník projektů s přehledem požadavků na realizaci projektů. Cena byla stanovena na základě požadavku jednotlivých škol na podporu jejich vzdělávacích zařízení a dle cen obvyklých za vytvoření daného zařízení. Odhadovaná průměrná hodnota je 2 miliony Kč na jedno zařízení. Předpokládá se zaměření projektů především na stavební úpravy (prům. cena 1 700 tisíc Kč/úpravu) a pořízení vybavení (prům cena 300 tisíc Kč/soubor vybavení, např. 15 PC). Ceny byly zjištěny z analýzy již realizovaných podobných projektů v území a z následného průzkumu u potenciálních dodavatelů. Do hodnoty indikátoru jsou započítány tyto typy škol – 5x MŠ (4 klasické MŠ A 1 zařízení rpod ěti do 3 let, 4x ZŠ, 2x jiná vzdělávací zařízení) | Q87: xxx
G88: 5 00 01 | H88: Kapacita podporovaných zařízení péče o děti nebo vzdělávací zařízení | I88: osoby | J88: výstupu | K88: 0 | L88: 2014-01-01 | M88: 130 | N88: 2023-12-31 | O88: xxx | P88: Cílová hodnota indikátoru byla stanovena ve výši 130 osob, které budou využívat podpořené aktivity. Tento požadavek vychází z detailního šetření u školských zařízení a z analýz provedených v rámci projektu Systémová podpora rozvoje meziobecní spolupráce v ČR v rámci území správních obvodů obcí s rozšířenou působností pro jednotlivá ORP. Hodnota vychází z předpokladu realizátorů projektu a jejich zaměření, dle zásobníku projektů. Rozpad hodnoty indikátoru – 5x MŠ = 50 osob (4x Klasická MŠ = 45 osob a 1x zařízení prod ěti do 3 let = 5 osob), 4x ZŠ = 60 osob, 2x jiná vzdělávací zařízení = 20 osob. Celkem 130 osob. | Q88: xxx
G89: 5 01 20 | H89: Počet osob využívající zařízení péče o děti do 3 let | I89: osoby | J89: výsledku | K89: 0 | L89: 2014-01-01 | M89: 2 | N89: 2023-12-31 | O89: xxx | P89: Cílová hodnota indikátoru byla stanovena ve výši 5 osob, které budou využívat podpořené aktivity. Tento požadavek vychází z detailního šetření u školských zařízení a z analýz provedených v rámci projektu Obce sobě pro jednotlivá ORP s ohledem na absorpční kapacitu a alokovanou částku. Průzkumem bylo zjištěno, že v území neposkytuje žádné zařízení možnost umístění do 3 let do školního zařízení. Předmětem indikátoru je počet uživatelů, kteří využívají zařízení pečující o děti do tří let, tj. zařízení vybudovaná či provozovaná v rámci projektu. "Uživatelé" jsou rodiče využívající zařízení pro děti do tří let, které mají z umístění dítěte přínos. Výchozí hodnota odpovídá stavu před realizací a byla stanovena na základě vlastních šetření z území., na základě tohoto šetření nebylo zjištěno žádné zařízení péče o děti do 3 let. Cílová hodnota odpovídá předpokládanému stavu po realizaci, kdy je plánována podpora 1 třídy o průměrné kapacitě 5 dětí, kdy na jedno umístěné dítě připadá 1 rodič. Cílová hodnota je tedy 5. | Q89: K datu 14.11.2019 došlo u tohoto indikátoru k úpravě cílové hodnoty. Cílová hodnota tohoto indikátoru byla snížena z 5 na 2 osoby z důvodu a) skutečné realizace projektů, b) zjištěné absorbční kapacity území v rámci Střednědobého hodnocení, kdy nebyl zjištěn žádný další projektový záměr ve stádiu připravenosti na podporu osob využívajících zařízení o děti do 3 let. V území bude realizován 1 projekt, kde budou v rámci dětské skupiny umístěny děti do 3. let. V rámci podaného projektu je plánované, že kapacita zařízení bude uzpůsobena na 2 děti do 3 let, kdy na jedno umístěné dítě připadá 1 rodič. Cílová hodnota je tedy 2. Tato změna byla komunitně projednána v území MAS ŽR a schválena Valnou hromadou MAS ŽR 14.11.2019.
